{"text_format":"1","workbook":"xlsx","n_sheets":9,"sheets":["PP","Tekening","BOM","Partlist","Tables","Opbouw","MaxiCompact","Calculatie","Translations"],"not_rendered":{"charts":0,"images":12,"macros":1,"external_links":0,"defined_names":94,"comments":0,"pivot_tables":0},"unopened":[],"bounds":{"document_bytes":16777216,"sheet_cells":100000,"rows_first":2000,"rows_last":500,"rows_between":2000,"halvings":0,"cell_chars":16384,"cell_head_chars":4096},"cells_cut":0,"cells_raw":0,"read":"whole","date_system":"1900"}

{"sheet":"PP","index":0,"n_rows":61,"n_cols":7,"rows_kept":61,"cut":false,"hidden":false,"merged":[[2,1,2,2],[57,4,60,5]]}
[]
[]
[null,"Power Pack"]
[]
[]
[]
[]
[]
[null,null,null,null,null,"v2019.1 CE"]
[]
[null,{"$f":"TextPerLanguage(SEL_LANGUAGE,2)","v":"Bedrijfsnaam:"},null,null,{"$f":"TextPerLanguage(SEL_LANGUAGE,5)","v":"Artikel:"}]
[null,{"$f":"TextPerLanguage(SEL_LANGUAGE,3)","v":"Contactpersoon:"},null,null,{"$f":"TextPerLanguage(SEL_LANGUAGE,20)","v":"Aantal units:"},1]
[null,{"$f":"TextPerLanguage(SEL_LANGUAGE,34)","v":"Referentie:"},null,null,null,null,{"$f":"IF(LEFT(C14,1)=\"N\",1,IF(LEFT(C14,1)=\"D\",3,IF(LEFT(C14,1)=\"F\",4,2)))","v":1}]
[null,{"$f":"TextPerLanguage(SEL_LANGUAGE,1)","v":"Taal:"},"Nederlands"]
[]
[null,null,null,null,null,{"$f":"TODAY()","v":"2019-03-13"}]
[]
[]
[]
[null,{"$f":"TextPerLanguage(SEL_LANGUAGE,7)","v":"Tank:"},"3 : 30 liter aluminium tank",null,{"$f":"TextPerLanguage(SEL_LANGUAGE,12)","v":"Max. werkdruk:"},{"$f":"TEXT(SYS_CLC_MAX_WP,\"0\")&\" bar\"","v":"250 bar"}]
[null,{"$f":"TextPerLanguage(SEL_LANGUAGE,8)","v":"Pomp:"},"P : 1,0  cc pompgroep 1",null,{"$f":"TextPerLanguage(SEL_LANGUAGE,13)","v":"Flow:"},{"$f":"SYS_CLC_FLOW&\" ltr/min.\"","v":"1,4 ltr/min."}]
[null,{"$f":"TextPerLanguage(SEL_LANGUAGE,9)","v":"Elektromotor:"},"1 : 2,2 kW 1395 omw/min B5 230V"]
[null,{"$f":"TextPerLanguage(SEL_LANGUAGE,19)","v":"Voltage opbouw:"},"012C"," ",null,null,true]
[null,{"$f":"TextPerLanguage(SEL_LANGUAGE,210)","v":"Veiligheid:"},"C : Drukbereik 50-250 bar - standaard"," ",null,null,true]
[null,{"$f":"TextPerLanguage(SEL_LANGUAGE,211)","v":"Rondpomp:"},"A : Geen"," ",null,null,false]
[null,{"$f":"TextPerLanguage(SEL_LANGUAGE,212)","v":"Voetplaat:"},"0 : Zonder Cetop 03 voetplaat",{"$f":"IF(ISERROR(VALUE(LEFT(SEL_MOUNTING,1))),0,VALUE(LEFT(SEL_MOUNTING,1)))","v":0},null,null,false]
[null,{"$f":"TextPerLanguage(SEL_LANGUAGE,18)","v":"Manometer:"},"<Geen manometer>"," "]
[]
[]
[]
[]
[]
[null,{"$f":"TextPerLanguage(SEL_LANGUAGE,143)","v":"Sectie1 - St.schuif:"},null,null,{"$f":"TextPerLanguage(SEL_LANGUAGE,193)","v":"Sectie5 - St.schuif:"}]
[null,{"$f":"TextPerLanguage(SEL_LANGUAGE,142)","v":"Sectie1 - Onderb. 1:"},null,null,{"$f":"TextPerLanguage(SEL_LANGUAGE,192)","v":"Sectie5 - Onderb. 1:"}]
[null,{"$f":"TextPerLanguage(SEL_LANGUAGE,141)","v":"Sectie1 - Onderb. 2:"},null,null,{"$f":"TextPerLanguage(SEL_LANGUAGE,191)","v":"Sectie5 - Onderb. 2:"}]
[null,{"$f":"TextPerLanguage(SEL_LANGUAGE,140)","v":"Sectie1 - Onderb. 3:"},null,null,{"$f":"TextPerLanguage(SEL_LANGUAGE,190)","v":"Sectie5 - Onderb. 3:"}]
[]
[]
[null,{"$f":"TextPerLanguage(SEL_LANGUAGE,147)","v":"Sectie2 - St.schuif:"},null,null,{"$f":"TextPerLanguage(SEL_LANGUAGE,197)","v":"Sectie6 - St.schuif:"}]
[null,{"$f":"TextPerLanguage(SEL_LANGUAGE,146)","v":"Sectie2 - Onderb. 1:"},null,null,{"$f":"TextPerLanguage(SEL_LANGUAGE,196)","v":"Sectie6 - Onderb. 1:"}]
[null,{"$f":"TextPerLanguage(SEL_LANGUAGE,145)","v":"Sectie2 - Onderb. 2:"},null,null,{"$f":"TextPerLanguage(SEL_LANGUAGE,195)","v":"Sectie6 - Onderb. 2:"}]
[null,{"$f":"TextPerLanguage(SEL_LANGUAGE,144)","v":"Sectie2 - Onderb. 3:"},null,null,{"$f":"TextPerLanguage(SEL_LANGUAGE,194)","v":"Sectie6 - Onderb. 3:"}]
[]
[]
[null,{"$f":"TextPerLanguage(SEL_LANGUAGE,151)","v":"Sectie3 - St.schuif:"},null,null,{"$f":"TextPerLanguage(SEL_LANGUAGE,201)","v":"Sectie7 - St.schuif:"}]
[null,{"$f":"TextPerLanguage(SEL_LANGUAGE,150)","v":"Sectie3 - Onderb. 1:"},null,null,{"$f":"TextPerLanguage(SEL_LANGUAGE,200)","v":"Sectie7 - Onderb. 1:"}]
[null,{"$f":"TextPerLanguage(SEL_LANGUAGE,149)","v":"Sectie3 - Onderb. 2:"},null,null,{"$f":"TextPerLanguage(SEL_LANGUAGE,199)","v":"Sectie7 - Onderb. 2:"}]
[null,{"$f":"TextPerLanguage(SEL_LANGUAGE,148)","v":"Sectie3 - Onderb. 3:"},null,null,{"$f":"TextPerLanguage(SEL_LANGUAGE,198)","v":"Sectie7 - Onderb. 3:"}]
[]
[]
[null,{"$f":"TextPerLanguage(SEL_LANGUAGE,155)","v":"Sectie4 - St.schuif:"},null,null,{"$f":"TextPerLanguage(SEL_LANGUAGE,205)","v":"Sectie8 - St.schuif:"}]
[null,{"$f":"TextPerLanguage(SEL_LANGUAGE,154)","v":"Sectie4 - Onderb. 1:"},null,null,{"$f":"TextPerLanguage(SEL_LANGUAGE,204)","v":"Sectie8 - Onderb. 1:"}]
[null,{"$f":"TextPerLanguage(SEL_LANGUAGE,153)","v":"Sectie4 - Onderb. 2:"},null,null,{"$f":"TextPerLanguage(SEL_LANGUAGE,203)","v":"Sectie8 - Onderb. 2:"}]
[null,{"$f":"TextPerLanguage(SEL_LANGUAGE,152)","v":"Sectie4 - Onderb. 3:"},null,null,{"$f":"TextPerLanguage(SEL_LANGUAGE,202)","v":"Sectie8 - Onderb. 3:"}]
[]
[]
[null,null,null,null,{"$f":"TextPerLanguage(SEL_LANGUAGE,224)&\":\"","v":"Opmerkingen:"}]
[null,{"$f":"TextPerLanguage(SEL_LANGUAGE,214)","v":"De unit is compleet gemonteerd en getest (ventielen mee-gespoten)."}]
[null,{"$f":"TextPerLanguage(SEL_LANGUAGE,27)","v":"De unit is excl. olie en bekabeling."}]
[null,{"$f":"TextPerLanguage(SEL_LANGUAGE,32)","v":"Levering volgens onze algemene leverings- en montagevoorwaarden"}]
[null,{"$f":"TextPerLanguage(SEL_LANGUAGE,24)&\" \"&IF(IFERROR(SEL_DELIVERY_DAYS,0)=0,TextPerLanguage(SEL_LANGUAGE,226),TextPerLanguage(SEL_LANGUAGE,30))","v":"Levertijd: in overleg"}]

{"sheet":"Tekening","index":1,"n_rows":42,"n_cols":255,"rows_kept":42,"cut":false,"hidden":false,"merged":[[35,2,37,3]]}
[null,null,null,null,null,null,null,null,null,null,null,null,null,null,null,null,null,null,null,null,null,null,null,null,null,null,null,null,null,null,null,null,null,null,null,null,null,null,null,null,null,null,null,null,null,null,null,null,null,null,null,null,null,null,null,null,null,null,null,null,null,null,null,null,null,null,null,null,null,null,null,null,null,null,null,null,null,null,null,null,null,null,null,null,null,null,null,null,null,null,null,null,null,null,null,null,null,null,null,null,null,null,null,null,null,null,null,null,null,null,null,null,null,null,null,null,null,null,null,null,null,null,null,null,null,null,null,null,null,null,null,null,null,null,null,null,null,null,null,null,null,null,null,null,null,null,null,null,null,null,null,null,null,null,null,null,null,null,null,null,null,null,null,null,null,null,null,null,null,null,null,null,null,null,null,null,null,null,null,null,null,null,null,null,null,null,null,null,null,null,null,null,null,null,null,null,null,null,null,null,null,null,null,null,null,null,null,null,null,null,null,null,null,null,null,null,null,null,null,null,null,null,null,null,null,null,null,null,null,null,null,null,null,null,null,null,null,null,null,null,null,null,null,null,null,null,null,null,null,null,null,null,null,null,"Shapes"]
[]
[]
[]
[]
[]
[]
[]
[]
[]
[]
[]
[]
[]
[]
[]
[]
[]
[]
[]
[]
[]
[]
[]
[]
[]
[]
[]
[]
[null,null,{"$f":"PP!B20","v":"Tank:"},{"$f":"MID(SEL_TANK,SEARCH(\":\",SEL_TANK)+2,40)","v":"30 liter aluminium tank"}]
[null,null,{"$f":"PP!B21","v":"Pomp:"},{"$f":"MID(SEL_PUMP,SEARCH(\":\",SEL_PUMP)+2,40)","v":"1,0  cc pompgroep 1"}]
[null,null,{"$f":"PP!B22","v":"Elektromotor:"},{"$f":"MID(SEL_MOTOR,SEARCH(\":\",SEL_MOTOR)+2,40)","v":"2,2 kW 1395 omw/min B5 230V"}]
[null,null,{"$f":"PP!E20","v":"Max. werkdruk:"},{"$f":"SYS_CLC_MAX_WP","v":250}]
[null,null,{"$f":"PP!E21","v":"Flow:"},{"$f":"SYS_CLC_FLOW","v":1.4}]
[null,null,"Filter :","MPT100-1-A-C-G1-P10-N-B-VR"]
[null,null,{"$f":"IF(T(SEL_PARTNO)<>\"\",T(SEL_PARTNO),\"- - -\")","v":"- - -"}]
[]
[]
[null,null,{"$f":"PP!B11","v":"Bedrijfsnaam:"},{"$f":"T(PP!C11)","v":""}]
[null,null,{"$f":"PP!B12","v":"Contactpersoon:"},{"$f":"T(PP!C12)","v":""}]
[null,null,{"$f":"PP!E11","v":"Artikel:"},{"$f":"T(PP!F11)","v":""}]
[null,null,{"$f":"TextPerLanguage(SEL_LANGUAGE,6)","v":"Datum:"},{"$f":"PP!F16","v":"2019-03-13"}]

{"sheet":"BOM","index":2,"n_rows":90,"n_cols":10,"rows_kept":90,"cut":false,"hidden":true,"merged":[[2,2,2,3],[89,2,89,4]]}
[null,null,"Power-Pack",null,{"$f":"PP!F9","v":"v2019.1 CE"}]
[]
[null,null,{"$f":"T(SEL_PARTNO)","v":""}]
[]
[null,null,{"$f":"TextPerLanguage(SEL_LANGUAGE,157)","v":"Stuklijst"}]
[]
["Opmerking","Cond.",{"$f":"\" \"&TextPerLanguage(SEL_LANGUAGE,221)","v":" Materiaal"},{"$f":"\" \"&TextPerLanguage(SEL_LANGUAGE,186)","v":" Omschrijving"},{"$f":"TextPerLanguage(SEL_LANGUAGE,158)&\" \"","v":"Aantal "},null,"Eenheid","Magazijn","Hoogte","Stekkers"]
["Basis",null,{"$f":"CONCATENATE(\"PP\",LEFT(SEL_TANK,1),LEFT(SEL_PUMP,1),LEFT(SEL_MOTOR,1))&\"HF\"","v":"PP3P1HF"},{"$f":"IF(LEFT(C8,1)=\"-\",\"\",VLOOKUP(C8,DBS_PARTLIST,5,FALSE))","v":"PowerPack 30L, 1cc, 2.2 kW"},1,null,{"$f":"VLOOKUP($C8,DBS_PARTLIST,6,0)","v":""},{"$f":"VLOOKUP($C8,DBS_PARTLIST,7,0)","v":""}]
["Cartridge-blok",null,{"$f":"IF(LEFT(SEL_MOUNTING,2)=\"MC\",\"CARTK043401\",IF(SEL_MOUNT_COUNT=0,IF(LEFT(SEL_RONDPOMP,1)=\"A\",\"CARTK054301\",\"CARTS011201\"),IF(SEL_MOUNT_COUNT=1,IF(LEFT(SEL_RONDPOMP,1)=\"A\",\"CARTK054302\",\"CARTS011201\"),\"CARTS011201\")))","v":"CARTK054301"},"Basisblok P-T",1,null,"EA",300]
["Nippel",{"$f":"LEFT(SEL_MOUNTING,2)=\"MC\"","v":false},{"$f":"IF(B10,\"EGESD18LR34WD\",\"EGESD18LR12WD\")","v":"EGESD18LR12WD"},"Inschroefkoppeling EGES 18 LR 1/2 BSP",1,null,"EA",300]
["Keuze Tank/Peilglas",{"$f":"NOT(OR(B12,B13))","v":true},{"$f":"IF(B11,VLOOKUP(SEL_TANK,DBS_TANK,3,FALSE),\"-\")","v":"LVA1SA"},"Peilglas",1,null,"EA",300]
["Keuze Tank/Peilglas/Temperatuur",{"$f":"SEL_BLN_TEMP","v":false},{"$f":"IF(B12,VLOOKUP(SEL_TANK,DBS_TANK,4,FALSE),\"-\")","v":"-"},"",1,null,"",""]
["Keuze Tank/Peilglas/Temperatuur/Schakelaar",{"$f":"SEL_BLN_TEMP_W_SWITCH","v":false},{"$f":"IF(B13,VLOOKUP(SEL_TANK,DBS_TANK,5,FALSE),\"-\")","v":"-"},"",1,null,"",""]
["Keuze Veiligheid",null,{"$f":"IF(LEFT(SEL_MOUNTING,2)=\"MC\",\"-\",VLOOKUP(SEL_RELIEF_VALVE,DBS_RELIEF_VALVE,2,FALSE))","v":"MO432"},"Drukregelklep patroon",1,null,"EA",300]
["Keuze Pomp - Artikel1 (koppeling)",null,{"$f":"IF(SEL_MOUNT_COUNT=0,\"-\",VLOOKUP(SEL_PUMP,DBS_PUMP,3,FALSE))","v":"-"},"",{"$f":"SEL_MOUNT_COUNT*2","v":0},null,"",""]
["Keuze Pomp - Artikel2 (afsluitdop)",null,{"$f":"IF(SEL_MOUNT_COUNT=0,\"-\",VLOOKUP(SEL_PUMP,DBS_PUMP,4,FALSE))","v":"-"},"",{"$f":"SEL_MOUNT_COUNT*2","v":0},null,"",""]
["Keuze Manometer - Manometer",null,{"$f":"IF(LEFT(SEL_GAUGE,1)=\"<\",\"-\",VLOOKUP(SEL_GAUGE,DBS_GAUGE,2,0))","v":"-"},"",1,null,"",""]
["Keuze Manometer - Afsluiter",null,{"$f":"IF(LEFT(SEL_GAUGE,1)=\"<\",\"-\",VLOOKUP(SEL_GAUGE,DBS_GAUGE,3,0))","v":"-"},"",1,null,"",""]
["Keuze Manometer - Verloopnippel",null,{"$f":"IF(AND(MID(SEL_GAUGE,1,1)<>\"<\",SEL_MOUNT_COUNT>1),\"REDR1214WD\",\"-\")","v":"-"},"",1,null,"",""]
["Stekker SP666",null,{"$f":"IF(E20=0,\"-\",\"SP666\")","v":"-"},"",{"$f":"J90","v":0},null,"",""]
["Voetplaat (en daaraan gerelateerd materiaal)",null,{"$f":"IF(E21=0,\"-\",\"SP666\")","v":"-"},{"$f":"LEFT(SEL_RONDPOMP,1)&IF(LEFT(SEL_RONDPOMP,1)=\"A\",\"\",SEL_VOLTAGE)&TRIM(LEFT(SEL_MOUNTING,2))","v":"A0"}]
["Opbouw - Artikel1",null,{"$f":"VLOOKUP(D21,DBS_OPBOUW,5,FALSE)","v":"-"},{"$f":"IF(LEFT(C22,1)=\"-\",\"\",VLOOKUP(C22,DBS_PARTLIST,5,FALSE))","v":""},{"$f":"VLOOKUP(D21,DBS_OPBOUW,6,FALSE)","v":0},null,{"$f":"VLOOKUP($C22,DBS_PARTLIST,6,0)","v":""},{"$f":"VLOOKUP($C22,DBS_PARTLIST,7,0)","v":""},null,{"$f":"VLOOKUP(C22,DBS_PARTLIST,4,FALSE)","v":0}]
["Opbouw - Artikel2",null,{"$f":"VLOOKUP(D21,DBS_OPBOUW,7,FALSE)","v":"-"},"",{"$f":"VLOOKUP(D21,DBS_OPBOUW,8,FALSE)","v":0},null,"","",null,{"$f":"VLOOKUP(C23,DBS_PARTLIST,4,FALSE)","v":0}]
["Opbouw - Artikel3",null,{"$f":"VLOOKUP(D21,DBS_OPBOUW,9,FALSE)","v":"-"},"",{"$f":"VLOOKUP(D21,DBS_OPBOUW,10,FALSE)","v":0},null,"","",null,{"$f":"VLOOKUP(C24,DBS_PARTLIST,4,FALSE)","v":0}]
["Voetplaat: Kunststof schroefplug (MC of 0-ledig)",null,{"$f":"IF(SEL_MOUNT_COUNT=0,\"SP08M\",\"-\")","v":"SP08M"},"Schroefplug kunststof 1/2 BSPafd.ring Ø27mm",{"$f":"IF(LEFT(SEL_MOUNTING,2)=\"MC\",1,2)","v":2},null,"EA",300]
["Voetplaat: Afsluitplug inbus (1-ledig)",null,{"$f":"IF(SEL_MOUNT_COUNT<>1,\"-\",\"VSR04WD\")","v":"-"},"",{"$f":"IF(MID(PP!C27,1,1)=\"M\",1,2)","v":2},null,"",""]
["Voetplaat: O-ring (> 1-ledig)",null,{"$f":"IF(SEL_MOUNT_COUNT<=1,\"-\",\"OR262\")","v":"-"},"",2,null,"",""]
["Voetplaat: Afsluitplug inbus (> 1-ledig)",null,{"$f":"IF(SEL_MOUNT_COUNT<=1,\"-\",\"VSR08WD\")","v":"-"},"",{"$f":"IF(MID(PP!C27,1,1)=\"M\",1,2)","v":2},null,"",""]
["MaxiCompact",null,"-"]
["MaxiCompact: Artikel2",null,{"$f":"IF(LEFT(SEL_MOUNTING,2)=\"MC\",MaxiCompact!C3,\"-\")","v":"-"},{"$f":"IF(LEFT(C30,1)=\"-\",\"\",VLOOKUP(C30,DBS_PARTLIST,5,FALSE))","v":""},{"$f":"MaxiCompact!D3","v":1},null,{"$f":"VLOOKUP($C30,DBS_PARTLIST,6,0)","v":""},{"$f":"VLOOKUP($C30,DBS_PARTLIST,7,0)","v":""}]
["MaxiCompact: Artikel3",null,{"$f":"IF(LEFT(SEL_MOUNTING,2)=\"MC\",MaxiCompact!C4,\"-\")","v":"-"},"",{"$f":"IF(LEFT(SEL_GAUGE,1)=\"<\",2,1)","v":2},null,"",""]
["MaxiCompact: Artikel4",null,{"$f":"IF(LEFT(SEL_MOUNTING,2)=\"MC\",MaxiCompact!C5,\"-\")","v":"-"},"",{"$f":"MaxiCompact!D5","v":1},null,"","",null,{"$f":"VLOOKUP(C32,DBS_PARTLIST,4,FALSE)","v":0}]
["MaxiCompact: Artikel5",null,{"$f":"IF(LEFT(SEL_MOUNTING,2)=\"MC\",MaxiCompact!C6,\"-\")","v":"-"},"",{"$f":"MaxiCompact!D6","v":1},null,"",""]
["MaxiCompact: Artikel6",null,{"$f":"IF(LEFT(SEL_MOUNTING,2)=\"MC\",MaxiCompact!C7,\"-\")","v":"-"},"",{"$f":"MaxiCompact!D7","v":1},null,"","",null,{"$f":"VLOOKUP(C34,DBS_PARTLIST,4,FALSE)","v":0}]
["MaxiCompact: Artikel7",null,{"$f":"IF(LEFT(SEL_MOUNTING,2)=\"MC\",MaxiCompact!C8,\"-\")","v":"-"},"",{"$f":"MaxiCompact!D8","v":1},null,"",""]
["MaxiCompact: Artikel8",null,{"$f":"IF(LEFT(SEL_MOUNTING,2)=\"MC\",MaxiCompact!C9,\"-\")","v":"-"},"",{"$f":"MaxiCompact!D9","v":1},null,"",""]
["MaxiCompact: Artikel9",null,{"$f":"IF(LEFT(SEL_MOUNTING,2)=\"MC\",MaxiCompact!C10,\"-\")","v":"-"},"",{"$f":"MaxiCompact!D10","v":1},null,"",""]
["MaxiCompact: Artikel10",null,{"$f":"IF(LEFT(SEL_MOUNTING,2)=\"MC\",MaxiCompact!C11,\"-\")","v":"-"},"",{"$f":"MaxiCompact!D11","v":2},null,"",""]
["Opbouwsectie 1",null,"-"]
["Sectie1: stuurschuif",{"$f":"AND(SEL_MOUNT_COUNT>=1,TRIM(SEL_SECT1_VALVE)<>\"\")","v":false},{"$f":"IF(B40,VLOOKUP(SEL_SECT1_VALVE,DBS_VALVE,2,0),\"-\")","v":"-"},{"$f":"IF(LEFT(C40,1)=\"-\",\"\",VLOOKUP(C40,DBS_PARTLIST,5,FALSE))","v":""},1,null,{"$f":"VLOOKUP($C40,DBS_PARTLIST,6,0)","v":""},{"$f":"VLOOKUP($C40,DBS_PARTLIST,7,0)","v":""},{"$f":"VLOOKUP(C40,DBS_PARTLIST,3,FALSE)","v":0},{"$f":"VLOOKUP(C40,DBS_PARTLIST,4,FALSE)","v":0}]
["Sectie1: onderbouw1",{"$f":"AND(SEL_MOUNT_COUNT>=1,TRIM(SEL_SECT1_FUNCT1)<>\"\")","v":false},{"$f":"IF(B41,VLOOKUP(SEL_SECT1_FUNCT1,DBS_VALVE_MOD,2,0),\"-\")","v":"-"},{"$f":"IF(LEFT(C41,1)=\"-\",\"\",VLOOKUP(C41,DBS_PARTLIST,5,FALSE))","v":""},1,null,{"$f":"VLOOKUP($C41,DBS_PARTLIST,6,0)","v":""},{"$f":"VLOOKUP($C41,DBS_PARTLIST,7,0)","v":""},{"$f":"VLOOKUP(C41,DBS_PARTLIST,3,FALSE)","v":0}]
["Sectie1: onderbouw2",{"$f":"AND(SEL_MOUNT_COUNT>=1,TRIM(SEL_SECT1_FUNCT2)<>\"\")","v":false},{"$f":"IF(B42,VLOOKUP(SEL_SECT1_FUNCT2,DBS_VALVE_MOD,2,0),\"-\")","v":"-"},{"$f":"IF(LEFT(C42,1)=\"-\",\"\",VLOOKUP(C42,DBS_PARTLIST,5,FALSE))","v":""},1,null,{"$f":"VLOOKUP($C42,DBS_PARTLIST,6,0)","v":""},{"$f":"VLOOKUP($C42,DBS_PARTLIST,7,0)","v":""},{"$f":"VLOOKUP(C42,DBS_PARTLIST,3,FALSE)","v":0}]
["Sectie1: onderbouw3",{"$f":"AND(SEL_MOUNT_COUNT>=1,TRIM(SEL_SECT1_FUNCT3)<>\"\")","v":false},{"$f":"IF(B43,VLOOKUP(SEL_SECT1_FUNCT3,DBS_VALVE_MOD,2,0),\"-\")","v":"-"},{"$f":"IF(LEFT(C43,1)=\"-\",\"\",VLOOKUP(C43,DBS_PARTLIST,5,FALSE))","v":""},1,null,{"$f":"VLOOKUP($C43,DBS_PARTLIST,6,0)","v":""},{"$f":"VLOOKUP($C43,DBS_PARTLIST,7,0)","v":""},{"$f":"VLOOKUP(C43,DBS_PARTLIST,3,FALSE)","v":0}]
["Sectie1: Bouten",{"$f":"AND(LEFT(C40,1)<>\"-\",C40<>\"KREV903DEK\")","v":false},{"$f":"IF(B44,\"KREV95\"&(SUM(I40:I44)),\"-\")","v":"-"},{"$f":"IF(LEFT(C44,1)=\"-\",\"\",VLOOKUP(C44,DBS_PARTLIST,5,FALSE))","v":""},1,null,{"$f":"VLOOKUP($C44,DBS_PARTLIST,6,0)","v":""},{"$f":"VLOOKUP($C44,DBS_PARTLIST,7,0)","v":""},{"$f":"IF(SUM(I40:I43)>150,5,0)","v":0}]
["Opbouwsectie 2",null,"-"]
["Sectie2: stuurschuif",{"$f":"AND(SEL_MOUNT_COUNT>=2,TRIM(SEL_SECT2_VALVE)<>\"\")","v":false},{"$f":"IF(B46,VLOOKUP(SEL_SECT2_VALVE,DBS_VALVE,2,0),\"-\")","v":"-"},{"$f":"IF(LEFT(C46,1)=\"-\",\"\",VLOOKUP(C46,DBS_PARTLIST,5,FALSE))","v":""},1,null,{"$f":"VLOOKUP($C46,DBS_PARTLIST,6,0)","v":""},{"$f":"VLOOKUP($C46,DBS_PARTLIST,7,0)","v":""},{"$f":"VLOOKUP(C46,DBS_PARTLIST,3,FALSE)","v":0},{"$f":"VLOOKUP(C46,DBS_PARTLIST,4,FALSE)","v":0}]
["Sectie2: onderbouw1",{"$f":"AND(SEL_MOUNT_COUNT>=2,TRIM(SEL_SECT2_FUNCT1)<>\"\")","v":false},{"$f":"IF(B47,VLOOKUP(SEL_SECT2_FUNCT1,DBS_VALVE_MOD,2,0),\"-\")","v":"-"},{"$f":"IF(LEFT(C47,1)=\"-\",\"\",VLOOKUP(C47,DBS_PARTLIST,5,FALSE))","v":""},1,null,{"$f":"VLOOKUP($C47,DBS_PARTLIST,6,0)","v":""},{"$f":"VLOOKUP($C47,DBS_PARTLIST,7,0)","v":""},{"$f":"VLOOKUP(C47,DBS_PARTLIST,3,FALSE)","v":0}]
["Sectie2: onderbouw2",{"$f":"AND(SEL_MOUNT_COUNT>=2,TRIM(SEL_SECT2_FUNCT2)<>\"\")","v":false},{"$f":"IF(B48,VLOOKUP(SEL_SECT2_FUNCT2,DBS_VALVE_MOD,2,0),\"-\")","v":"-"},{"$f":"IF(LEFT(C48,1)=\"-\",\"\",VLOOKUP(C48,DBS_PARTLIST,5,FALSE))","v":""},1,null,{"$f":"VLOOKUP($C48,DBS_PARTLIST,6,0)","v":""},{"$f":"VLOOKUP($C48,DBS_PARTLIST,7,0)","v":""},{"$f":"VLOOKUP(C48,DBS_PARTLIST,3,FALSE)","v":0}]
["Sectie2: onderbouw3",{"$f":"AND(SEL_MOUNT_COUNT>=2,TRIM(SEL_SECT2_FUNCT3)<>\"\")","v":false},{"$f":"IF(B49,VLOOKUP(SEL_SECT2_FUNCT3,DBS_VALVE_MOD,2,0),\"-\")","v":"-"},{"$f":"IF(LEFT(C49,1)=\"-\",\"\",VLOOKUP(C49,DBS_PARTLIST,5,FALSE))","v":""},1,null,{"$f":"VLOOKUP($C49,DBS_PARTLIST,6,0)","v":""},{"$f":"VLOOKUP($C49,DBS_PARTLIST,7,0)","v":""},{"$f":"VLOOKUP(C49,DBS_PARTLIST,3,FALSE)","v":0}]
["Sectie2: Bouten",{"$f":"AND(LEFT(C46,1)<>\"-\",C46<>\"KREV903DEK\")","v":false},{"$f":"IF(B50,\"KREV95\"&(SUM(I46:I50)),\"-\")","v":"-"},{"$f":"IF(LEFT(C50,1)=\"-\",\"\",VLOOKUP(C50,DBS_PARTLIST,5,FALSE))","v":""},1,null,{"$f":"VLOOKUP($C50,DBS_PARTLIST,6,0)","v":""},{"$f":"VLOOKUP($C50,DBS_PARTLIST,7,0)","v":""},{"$f":"IF(SUM(I46:I49)>150,5,0)","v":0}]
["Opbouwsectie 3",null,"-"]
["Sectie3: stuurschuif",{"$f":"AND(SEL_MOUNT_COUNT>=3,TRIM(SEL_SECT3_VALVE)<>\"\")","v":false},{"$f":"IF(B52,VLOOKUP(SEL_SECT3_VALVE,DBS_VALVE,2,0),\"-\")","v":"-"},{"$f":"IF(LEFT(C52,1)=\"-\",\"\",VLOOKUP(C52,DBS_PARTLIST,5,FALSE))","v":""},1,null,{"$f":"VLOOKUP($C52,DBS_PARTLIST,6,0)","v":""},{"$f":"VLOOKUP($C52,DBS_PARTLIST,7,0)","v":""},{"$f":"VLOOKUP(C52,DBS_PARTLIST,3,FALSE)","v":0},{"$f":"VLOOKUP(C52,DBS_PARTLIST,4,FALSE)","v":0}]
["Sectie3: onderbouw1",{"$f":"AND(SEL_MOUNT_COUNT>=3,TRIM(SEL_SECT3_FUNCT1)<>\"\")","v":false},{"$f":"IF(B53,VLOOKUP(SEL_SECT3_FUNCT1,DBS_VALVE_MOD,2,0),\"-\")","v":"-"},{"$f":"IF(LEFT(C53,1)=\"-\",\"\",VLOOKUP(C53,DBS_PARTLIST,5,FALSE))","v":""},1,null,{"$f":"VLOOKUP($C53,DBS_PARTLIST,6,0)","v":""},{"$f":"VLOOKUP($C53,DBS_PARTLIST,7,0)","v":""},{"$f":"VLOOKUP(C53,DBS_PARTLIST,3,FALSE)","v":0}]
["Sectie3: onderbouw2",{"$f":"AND(SEL_MOUNT_COUNT>=3,TRIM(SEL_SECT3_FUNCT2)<>\"\")","v":false},{"$f":"IF(B54,VLOOKUP(SEL_SECT3_FUNCT2,DBS_VALVE_MOD,2,0),\"-\")","v":"-"},{"$f":"IF(LEFT(C54,1)=\"-\",\"\",VLOOKUP(C54,DBS_PARTLIST,5,FALSE))","v":""},1,null,{"$f":"VLOOKUP($C54,DBS_PARTLIST,6,0)","v":""},{"$f":"VLOOKUP($C54,DBS_PARTLIST,7,0)","v":""},{"$f":"VLOOKUP(C54,DBS_PARTLIST,3,FALSE)","v":0}]
["Sectie3: onderbouw3",{"$f":"AND(SEL_MOUNT_COUNT>=3,TRIM(SEL_SECT3_FUNCT3)<>\"\")","v":false},{"$f":"IF(B55,VLOOKUP(SEL_SECT3_FUNCT3,DBS_VALVE_MOD,2,0),\"-\")","v":"-"},{"$f":"IF(LEFT(C55,1)=\"-\",\"\",VLOOKUP(C55,DBS_PARTLIST,5,FALSE))","v":""},1,null,{"$f":"VLOOKUP($C55,DBS_PARTLIST,6,0)","v":""},{"$f":"VLOOKUP($C55,DBS_PARTLIST,7,0)","v":""},{"$f":"VLOOKUP(C55,DBS_PARTLIST,3,FALSE)","v":0}]
["Sectie3: Bouten",{"$f":"AND(LEFT(C52,1)<>\"-\",C52<>\"KREV903DEK\")","v":false},{"$f":"IF(B56,\"KREV95\"&(SUM(I52:I56)),\"-\")","v":"-"},{"$f":"IF(LEFT(C56,1)=\"-\",\"\",VLOOKUP(C56,DBS_PARTLIST,5,FALSE))","v":""},1,null,{"$f":"VLOOKUP($C56,DBS_PARTLIST,6,0)","v":""},{"$f":"VLOOKUP($C56,DBS_PARTLIST,7,0)","v":""},{"$f":"IF(SUM(I52:I55)>150,5,0)","v":0}]
["Opbouwsectie 4",null,"-"]
["Sectie4: stuurschuif",{"$f":"AND(SEL_MOUNT_COUNT>=4,TRIM(SEL_SECT4_VALVE)<>\"\")","v":false},{"$f":"IF(B58,VLOOKUP(SEL_SECT4_VALVE,DBS_VALVE,2,0),\"-\")","v":"-"},{"$f":"IF(LEFT(C58,1)=\"-\",\"\",VLOOKUP(C58,DBS_PARTLIST,5,FALSE))","v":""},1,null,{"$f":"VLOOKUP($C58,DBS_PARTLIST,6,0)","v":""},{"$f":"VLOOKUP($C58,DBS_PARTLIST,7,0)","v":""},{"$f":"VLOOKUP(C58,DBS_PARTLIST,3,FALSE)","v":0},{"$f":"VLOOKUP(C58,DBS_PARTLIST,4,FALSE)","v":0}]
["Sectie4: onderbouw1",{"$f":"AND(SEL_MOUNT_COUNT>=4,TRIM(SEL_SECT4_FUNCT1)<>\"\")","v":false},{"$f":"IF(B59,VLOOKUP(SEL_SECT4_FUNCT1,DBS_VALVE_MOD,2,0),\"-\")","v":"-"},{"$f":"IF(LEFT(C59,1)=\"-\",\"\",VLOOKUP(C59,DBS_PARTLIST,5,FALSE))","v":""},1,null,{"$f":"VLOOKUP($C59,DBS_PARTLIST,6,0)","v":""},{"$f":"VLOOKUP($C59,DBS_PARTLIST,7,0)","v":""},{"$f":"VLOOKUP(C59,DBS_PARTLIST,3,FALSE)","v":0}]
["Sectie4: onderbouw2",{"$f":"AND(SEL_MOUNT_COUNT>=4,TRIM(SEL_SECT4_FUNCT2)<>\"\")","v":false},{"$f":"IF(B60,VLOOKUP(SEL_SECT4_FUNCT2,DBS_VALVE_MOD,2,0),\"-\")","v":"-"},{"$f":"IF(LEFT(C60,1)=\"-\",\"\",VLOOKUP(C60,DBS_PARTLIST,5,FALSE))","v":""},1,null,{"$f":"VLOOKUP($C60,DBS_PARTLIST,6,0)","v":""},{"$f":"VLOOKUP($C60,DBS_PARTLIST,7,0)","v":""},{"$f":"VLOOKUP(C60,DBS_PARTLIST,3,FALSE)","v":0}]
["Sectie4: onderbouw3",{"$f":"AND(SEL_MOUNT_COUNT>=4,TRIM(SEL_SECT4_FUNCT3)<>\"\")","v":false},{"$f":"IF(B61,VLOOKUP(SEL_SECT4_FUNCT3,DBS_VALVE_MOD,2,0),\"-\")","v":"-"},{"$f":"IF(LEFT(C61,1)=\"-\",\"\",VLOOKUP(C61,DBS_PARTLIST,5,FALSE))","v":""},1,null,{"$f":"VLOOKUP($C61,DBS_PARTLIST,6,0)","v":""},{"$f":"VLOOKUP($C61,DBS_PARTLIST,7,0)","v":""},{"$f":"VLOOKUP(C61,DBS_PARTLIST,3,FALSE)","v":0}]
["Sectie4: Bouten",{"$f":"AND(LEFT(C58,1)<>\"-\",C58<>\"KREV903DEK\")","v":false},{"$f":"IF(B62,\"KREV95\"&(SUM(I58:I62)),\"-\")","v":"-"},{"$f":"IF(LEFT(C62,1)=\"-\",\"\",VLOOKUP(C62,DBS_PARTLIST,5,FALSE))","v":""},1,null,{"$f":"VLOOKUP($C62,DBS_PARTLIST,6,0)","v":""},{"$f":"VLOOKUP($C62,DBS_PARTLIST,7,0)","v":""},{"$f":"IF(SUM(I58:I61)>150,5,0)","v":0}]
["Opbouwsectie 5",null,"-"]
["Sectie5: stuurschuif",{"$f":"AND(SEL_MOUNT_COUNT>=5,TRIM(SEL_SECT5_VALVE)<>\"\")","v":false},{"$f":"IF(B64,VLOOKUP(SEL_SECT5_VALVE,DBS_VALVE,2,0),\"-\")","v":"-"},{"$f":"IF(LEFT(C64,1)=\"-\",\"\",VLOOKUP(C64,DBS_PARTLIST,5,FALSE))","v":""},1,null,{"$f":"VLOOKUP($C64,DBS_PARTLIST,6,0)","v":""},{"$f":"VLOOKUP($C64,DBS_PARTLIST,7,0)","v":""},{"$f":"VLOOKUP(C64,DBS_PARTLIST,3,FALSE)","v":0},{"$f":"VLOOKUP(C64,DBS_PARTLIST,4,FALSE)","v":0}]
["Sectie5: onderbouw1",{"$f":"AND(SEL_MOUNT_COUNT>=5,TRIM(SEL_SECT5_FUNCT1)<>\"\")","v":false},{"$f":"IF(B65,VLOOKUP(SEL_SECT5_FUNCT1,DBS_VALVE_MOD,2,0),\"-\")","v":"-"},{"$f":"IF(LEFT(C65,1)=\"-\",\"\",VLOOKUP(C65,DBS_PARTLIST,5,FALSE))","v":""},1,null,{"$f":"VLOOKUP($C65,DBS_PARTLIST,6,0)","v":""},{"$f":"VLOOKUP($C65,DBS_PARTLIST,7,0)","v":""},{"$f":"VLOOKUP(C65,DBS_PARTLIST,3,FALSE)","v":0}]
["Sectie5: onderbouw2",{"$f":"AND(SEL_MOUNT_COUNT>=5,TRIM(SEL_SECT5_FUNCT2)<>\"\")","v":false},{"$f":"IF(B66,VLOOKUP(SEL_SECT5_FUNCT2,DBS_VALVE_MOD,2,0),\"-\")","v":"-"},{"$f":"IF(LEFT(C66,1)=\"-\",\"\",VLOOKUP(C66,DBS_PARTLIST,5,FALSE))","v":""},1,null,{"$f":"VLOOKUP($C66,DBS_PARTLIST,6,0)","v":""},{"$f":"VLOOKUP($C66,DBS_PARTLIST,7,0)","v":""},{"$f":"VLOOKUP(C66,DBS_PARTLIST,3,FALSE)","v":0}]
["Sectie5: onderbouw3",{"$f":"AND(SEL_MOUNT_COUNT>=5,TRIM(SEL_SECT5_FUNCT3)<>\"\")","v":false},{"$f":"IF(B67,VLOOKUP(SEL_SECT5_FUNCT3,DBS_VALVE_MOD,2,0),\"-\")","v":"-"},{"$f":"IF(LEFT(C67,1)=\"-\",\"\",VLOOKUP(C67,DBS_PARTLIST,5,FALSE))","v":""},1,null,{"$f":"VLOOKUP($C67,DBS_PARTLIST,6,0)","v":""},{"$f":"VLOOKUP($C67,DBS_PARTLIST,7,0)","v":""},{"$f":"VLOOKUP(C67,DBS_PARTLIST,3,FALSE)","v":0}]
["Sectie5: Bouten",{"$f":"AND(LEFT(C64,1)<>\"-\",C64<>\"KREV903DEK\")","v":false},{"$f":"IF(B68,\"KREV95\"&(SUM(I64:I68)),\"-\")","v":"-"},"",1,null,{"$f":"VLOOKUP($C68,DBS_PARTLIST,6,0)","v":""},{"$f":"VLOOKUP($C68,DBS_PARTLIST,7,0)","v":""},{"$f":"IF(SUM(I64:I67)>150,5,0)","v":0}]
["Opbouwsectie 6",null,"-"]
["Sectie6: stuurschuif",{"$f":"AND(SEL_MOUNT_COUNT>=6,TRIM(SEL_SECT6_VALVE)<>\"\")","v":false},{"$f":"IF(B70,VLOOKUP(SEL_SECT6_VALVE,DBS_VALVE,2,0),\"-\")","v":"-"},"",1,null,{"$f":"VLOOKUP($C70,DBS_PARTLIST,6,0)","v":""},{"$f":"VLOOKUP($C70,DBS_PARTLIST,7,0)","v":""},{"$f":"VLOOKUP(C70,DBS_PARTLIST,3,FALSE)","v":0},{"$f":"VLOOKUP(C70,DBS_PARTLIST,4,FALSE)","v":0}]
["Sectie6: onderbouw1",{"$f":"AND(SEL_MOUNT_COUNT>=6,TRIM(SEL_SECT6_FUNCT1)<>\"\")","v":false},{"$f":"IF(B71,VLOOKUP(SEL_SECT6_FUNCT1,DBS_VALVE_MOD,2,0),\"-\")","v":"-"},"",1,null,{"$f":"VLOOKUP($C71,DBS_PARTLIST,6,0)","v":""},{"$f":"VLOOKUP($C71,DBS_PARTLIST,7,0)","v":""},{"$f":"VLOOKUP(C71,DBS_PARTLIST,3,FALSE)","v":0}]
["Sectie6: onderbouw2",{"$f":"AND(SEL_MOUNT_COUNT>=6,TRIM(SEL_SECT6_FUNCT2)<>\"\")","v":false},{"$f":"IF(B72,VLOOKUP(SEL_SECT6_FUNCT2,DBS_VALVE_MOD,2,0),\"-\")","v":"-"},"",1,null,{"$f":"VLOOKUP($C72,DBS_PARTLIST,6,0)","v":""},{"$f":"VLOOKUP($C72,DBS_PARTLIST,7,0)","v":""},{"$f":"VLOOKUP(C72,DBS_PARTLIST,3,FALSE)","v":0}]
["Sectie6: onderbouw3",{"$f":"AND(SEL_MOUNT_COUNT>=6,TRIM(SEL_SECT6_FUNCT3)<>\"\")","v":false},{"$f":"IF(B73,VLOOKUP(SEL_SECT6_FUNCT3,DBS_VALVE_MOD,2,0),\"-\")","v":"-"},"",1,null,{"$f":"VLOOKUP($C73,DBS_PARTLIST,6,0)","v":""},{"$f":"VLOOKUP($C73,DBS_PARTLIST,7,0)","v":""},{"$f":"VLOOKUP(C73,DBS_PARTLIST,3,FALSE)","v":0}]
["Sectie6: Bouten",{"$f":"AND(LEFT(C70,1)<>\"-\",C70<>\"KREV903DEK\")","v":false},{"$f":"IF(B74,\"KREV95\"&(SUM(I70:I74)),\"-\")","v":"-"},"",1,null,{"$f":"VLOOKUP($C74,DBS_PARTLIST,6,0)","v":""},{"$f":"VLOOKUP($C74,DBS_PARTLIST,7,0)","v":""},{"$f":"IF(SUM(I70:I73)>150,5,0)","v":0}]
["Opbouwsectie 7",null,"-"]
["Sectie7: stuurschuif",{"$f":"AND(SEL_MOUNT_COUNT>=7,TRIM(SEL_SECT7_VALVE)<>\"\")","v":false},{"$f":"IF(B76,VLOOKUP(SEL_SECT7_VALVE,DBS_VALVE,2,0),\"-\")","v":"-"},"",1,null,{"$f":"VLOOKUP($C76,DBS_PARTLIST,6,0)","v":""},{"$f":"VLOOKUP($C76,DBS_PARTLIST,7,0)","v":""},{"$f":"VLOOKUP(C76,DBS_PARTLIST,3,FALSE)","v":0},{"$f":"VLOOKUP(C76,DBS_PARTLIST,4,FALSE)","v":0}]
["Sectie7: onderbouw1",{"$f":"AND(SEL_MOUNT_COUNT>=7,TRIM(SEL_SECT7_FUNCT1)<>\"\")","v":false},{"$f":"IF(B77,VLOOKUP(SEL_SECT7_FUNCT1,DBS_VALVE_MOD,2,0),\"-\")","v":"-"},"",1,null,{"$f":"VLOOKUP($C77,DBS_PARTLIST,6,0)","v":""},{"$f":"VLOOKUP($C77,DBS_PARTLIST,7,0)","v":""},{"$f":"VLOOKUP(C77,DBS_PARTLIST,3,FALSE)","v":0}]
["Sectie7: onderbouw2",{"$f":"AND(SEL_MOUNT_COUNT>=7,TRIM(SEL_SECT7_FUNCT2)<>\"\")","v":false},{"$f":"IF(B78,VLOOKUP(SEL_SECT7_FUNCT2,DBS_VALVE_MOD,2,0),\"-\")","v":"-"},"",1,null,{"$f":"VLOOKUP($C78,DBS_PARTLIST,6,0)","v":""},{"$f":"VLOOKUP($C78,DBS_PARTLIST,7,0)","v":""},{"$f":"VLOOKUP(C78,DBS_PARTLIST,3,FALSE)","v":0}]
["Sectie7: onderbouw3",{"$f":"AND(SEL_MOUNT_COUNT>=7,TRIM(SEL_SECT7_FUNCT3)<>\"\")","v":false},{"$f":"IF(B79,VLOOKUP(SEL_SECT7_FUNCT3,DBS_VALVE_MOD,2,0),\"-\")","v":"-"},"",1,null,{"$f":"VLOOKUP($C79,DBS_PARTLIST,6,0)","v":""},{"$f":"VLOOKUP($C79,DBS_PARTLIST,7,0)","v":""},{"$f":"VLOOKUP(C79,DBS_PARTLIST,3,FALSE)","v":0}]
["Sectie7: Bouten",{"$f":"AND(LEFT(C76,1)<>\"-\",C76<>\"KREV903DEK\")","v":false},{"$f":"IF(B80,\"KREV95\"&(SUM(I76:I80)),\"-\")","v":"-"},"",1,null,{"$f":"VLOOKUP($C80,DBS_PARTLIST,6,0)","v":""},{"$f":"VLOOKUP($C80,DBS_PARTLIST,7,0)","v":""},{"$f":"IF(SUM(I76:I79)>150,5,0)","v":0}]
["Opbouwsectie 8",null,"-"]
["Sectie8: stuurschuif",{"$f":"AND(SEL_MOUNT_COUNT>=8,TRIM(SEL_SECT8_VALVE)<>\"\")","v":false},{"$f":"IF(B82,VLOOKUP(SEL_SECT8_VALVE,DBS_VALVE,2,0),\"-\")","v":"-"},"",1,null,{"$f":"VLOOKUP($C82,DBS_PARTLIST,6,0)","v":""},{"$f":"VLOOKUP($C82,DBS_PARTLIST,7,0)","v":""},{"$f":"VLOOKUP(C82,DBS_PARTLIST,3,FALSE)","v":0},{"$f":"VLOOKUP(C82,DBS_PARTLIST,4,FALSE)","v":0}]
["Sectie8: onderbouw1",{"$f":"AND(SEL_MOUNT_COUNT>=8,TRIM(SEL_SECT8_FUNCT1)<>\"\")","v":false},{"$f":"IF(B83,VLOOKUP(SEL_SECT8_FUNCT1,DBS_VALVE_MOD,2,0),\"-\")","v":"-"},"",1,null,"","",{"$f":"VLOOKUP(C83,DBS_PARTLIST,3,FALSE)","v":0}]
["Sectie8: onderbouw2",{"$f":"AND(SEL_MOUNT_COUNT>=8,TRIM(SEL_SECT8_FUNCT2)<>\"\")","v":false},{"$f":"IF(B84,VLOOKUP(SEL_SECT8_FUNCT2,DBS_VALVE_MOD,2,0),\"-\")","v":"-"},"",1,null,"","",{"$f":"VLOOKUP(C84,DBS_PARTLIST,3,FALSE)","v":0}]
["Sectie8: onderbouw3",{"$f":"AND(SEL_MOUNT_COUNT>=8,TRIM(SEL_SECT8_FUNCT3)<>\"\")","v":false},{"$f":"IF(B85,VLOOKUP(SEL_SECT8_FUNCT3,DBS_VALVE_MOD,2,0),\"-\")","v":"-"},"",1,null,"","",{"$f":"VLOOKUP(C85,DBS_PARTLIST,3,FALSE)","v":0}]
["Sectie8: Bouten",{"$f":"AND(LEFT(C82,1)<>\"-\",C82<>\"KREV903DEK\")","v":false},{"$f":"IF(B86,\"KREV95\"&(SUM(I82:I86)),\"-\")","v":"-"},"",1,null,"","",{"$f":"IF(SUM(I82:I85)>150,5,0)","v":0}]
["Voorziening tbv diverse kleine materialen",null,"KSCKLMAT",{"$f":"VLOOKUP(C87,DBS_PARTLIST,5,FALSE)","v":"<montage materiaal>"},1,null,"EA","300"]
["Engineering",null,"ENG",{"$f":"VLOOKUP(C88,DBS_PARTLIST,5,FALSE)","v":"<engineering>"},30,null,"EA",300]
["Bewerkingstijd",null,"KSCB1",{"$f":"VLOOKUP(C89,DBS_PARTLIST,5,FALSE)","v":"Servicemonteur - Intern - 7-18 uur - ma-vr"},{"$f":"SYS_CLC_ASSEMBLY_HOURS","v":3.25},null,"HRS","300"]
[null,null,{"$f":"TODAY()","v":"2019-03-13"},null,null,null,null,null,null,{"$f":"SUM(J8:J86)","v":0}]

{"sheet":"Partlist","index":3,"n_rows":266,"n_cols":12,"rows_kept":266,"cut":false,"hidden":true,"merged":[]}
["Artikel","Image","Inb.Hoogte","SP666","Oms","UOM","STOCKNO","ORIGIN","OMS_DUT","OMS_ENG","OMS_GER","OMS_FRE"]
["-",null,null,null,null,"",""]
["933820",null,null,null,{"$f":"CHOOSE(SEL_LANGUAGE,I3,J3,K3,L3)","v":"Tapbout M8x20 -8.8 DIN 933"},"EA",300,null,"Tapbout M8x20 -8.8 DIN 933","Screw M8x20 / 933","Schraube verz. M8x20 8.8","Visse M8x20  8,8"]
["CARTK043401",null,null,null,"MaxiCompact-blok aluminium","EA",300,null,"MaxiCompact-blok aluminium","MaxiCompact-block aluminium","MaxiCompact-block aluminium","block aluminium MaxiCompact"]
["CARTK054301",null,null,null,"Basisblok P-T","EA",300,null,"Basisblok P-T","Baseblock P-T","Basisblock P-T","Embase P-T"]
["CARTK054302",null,null,null,"Basisblok 1 Cetop 3","EA",300,null,"Basisblok 1 Cetop 3","Baseblock 1 Cetop 3","Basisblock 1 Cetop 3","Embase 1 Cetop 3"]
["CARTS011201",null,null,null,"Modulair basisblok","EA",300,null,"Modulair basisblok","Modular baseblock","Modulär Basisblock","Embase modulaire"]
["CB10HVM03009","CB10HVM03009",50,null,"Balanceerklep NG6","EA",300,null,"Balanceerklep NG6","Counterbalance valve","Gegenhalteventil","Valve d'équilibrage NG6"]
["CB10HVM03017","CB10HVM03017",50,null,"Balanceerklep NG6","EA",300,null,"Balanceerklep NG6","Counterbalance valve","Gegenhalteventil","Valve d'équilibrage NG6"]
["CP3002M03001","CP3002M03001",50,null,"Drukcomp. 2-weg CP300-2-B-A-310-7-E NG6","EA",300,null,"Drukcomp. 2-weg CP300-2-B-A-310-7-E NG6","Pressure compensator 2-way","Druckkompensator 2-Wege","Vanne 2-voie pression comp. 2-weg CP300-2-B-A-310-7-E NG6"]
["CP3102M03001","CP3102M03001",50,null,"3weg stroomregelklep CP310-2-B-A-E NG6","EA",300,null,"3weg stroomregelklep CP310-2-B-A-E NG6","3-way flow control valve","3Wege Stromregelventil","Vanne 3-voie presison comp. CP310-2-B-A-E NG6"]
["CP6181B0R",null,null,null,"Afsluiter/Smoring patroon","EA",300,null,"Afsluiter/Smoring patroon","Afsluiter/Smoring patroon","Drosselventilpatrone","Cartouche Robinet/Entrangleur"]
["CP93102B0",null,null,null,"Cavity plug 2-weg serie 10","EA",300,null,"Cavity plug 2-weg serie 10","Cavity Plug 2-Way serie 10","2-Wege Stopfen Serie 10","Bouchon 2-voie serie 10"]
["CP95012",null,null,null,"Spoel cci CP900-12 DC serie 10,12,16,20","EA",300,null,"Spoel cci CP900-12 DC serie 10,12,16,20","Coil 12V DC","Spule 12V DC","Bobine cci CP900-12 DC serie 10,12,16,20"]
["CP950220",null,null,null,"Spoel cci CP900-220 AC serie 10,12,16,20","EA",300,null,"Spoel cci CP900-220 AC serie 10,12,16,20","Coil 220V AC","Spule 220V AC","Bobine cci CP900-220 AC serie 10,12,16,20"]
["CP95024",null,null,null,"Spoel cci CP900-24 DC serie 10,12,16,20","EA",300,null,"Spoel cci CP900-24 DC serie 10,12,16,20","Coil 24V DC","Spule 24V DC","Bobine cci CP900-24 DC serie 10,12,16,20"]
["CV10NP03B00",null,null,null,"Terugslagklep patroon","EA",300,null,"Terugslagklep patroon","Check-Valve cartridge","Rückschlagventil patrone","Cartouche clapet anti-retour"]
["EGESD18LR12WD",null,null,null,"Inschroefkoppeling EGES 18 LR 1/2 BSP","EA",300,null,"Inschroefkoppeling EGES 18 LR 1/2 BSP","Coupling EGES 18L-1/2 BSP","Verschraubung EGES 18 LR 1/2 BSP","Raccord EGES 18 LR 1/2 BSP"]
["EGESD18LR34WD",null,null,null,"Inschroefkoppeling EGES 18 LR 3/4 BSP","EA",300,null,"Inschroefkoppeling EGES 18 LR 3/4 BSP","Coupling EGES 18L-3/4 BSP","Verschraubung EGES 18 LR 3/4 BSP","Raccord EGES 18 LR 3/4 BSP"]
["EM18090",null,null,null,"Manometer afsluiter EM 180","EA",300,null,"Manometer afsluiter EM 180","Pressure gauge shut-off valve","Manometerabsperrhahn","Robinet de fermeture pour manomètre EM 180"]
["ENG",null,null,null,"<engineering>","EA",300,null,"<engineering>","<engineering>","<engineering>","<engineering>"]
["GEV12LR38",null,null,null,"Inschroefkoppeling GEV 12 LR 3/8 BSP","EA",300,null,"Inschroefkoppeling GEV 12 LR 3/8 BSP","Male stud 12L-3/8 BSP","Einschraubverschraubung gerade","Raccord GEV 12 LR 3/8 BSP"]
["GEV15LR38",null,null,null,"Inschroefkoppeling GEV 15 LR 3/8 BSP","EA",300,null,"Inschroefkoppeling GEV 15 LR 3/8 BSP","Male stud 15L-3/8 BSP","Einschraubverschraubung gerade","Raccord GEV 15 LR 3/8 BSP"]
["KREV03B2012C","SEV03B2",45,1,{"$f":"CHOOSE(SEL_LANGUAGE,I24,J24,K24,L24)","v":"Stuurventiel elektrisch NG6KREV 03-B2-012C"},"EA",300,null,"Stuurventiel elektrisch NG6KREV 03-B2-012C","Electric control valve NG6KREV 03-B2-012C","Steuerventil NG6, 350bar, 12VKREV 03-B2-012C","Distributeur électrique NG6KREV 03-B2-012C"]
["KREV03B2024C","SEV03B2",45,1,"Stuurventiel elektrisch NG6KREV 03-B2-024C","EA",300,null,"Stuurventiel elektrisch NG6KREV 03-B2-024C","Electric control valve NG6KREV 03-B2-024C","Steuerventil elektr. NG6KREV 03-B2-024C","Distributeur électrique NG6KREV 03-B2-024C"]
["KREV03B2230A","SEV03B2",45,1,"Stuurventiel elektrisch NG6KREV 03-B2-230A","EA",300,null,"Stuurventiel elektrisch NG6KREV 03-B2-230A","Electric control valve NG6KREV 03-B2-230A","Steuerventil NG6, 350bar, 230VKREV 03-B2-230A","Distributeur électrique NG6KREV 03-B2-230A"]
["KREV03B2230A","SEV03B2",45,1,"Stuurschuif elekt. SEV-03-B2-230A NG6","EA",300,null,"Stuurschuif elekt. SEV-03-B2-230A NG6","Saturn Valve 4/2 - 230V-AC","Elektromagnetventil 4/2 NW6","Distributeur élect. SEV-03-B2-230A NG6"]
["KREV03B20012C","SEV03B20",45,1,"Stuurventiel elektrisch NG6KREV 03-B20-012C","EA",300,null,"Stuurventiel elektrisch NG6KREV 03-B20-012C","Electric control valve NG6KREV 03-B20-012C","Steuerventil NG6, 350bar, 12VKREV 03-B20-012C","Distributeur électrique NG6KREV 03-B20-012C"]
["KREV03B20024C","SEV03B20",45,1,"Stuurventiel elektrisch NG6KREV 03-B20-024C","EA",300,null,"Stuurventiel elektrisch NG6KREV 03-B20-024C","Electric control valve NG6KREV 03-B20-024C","Steuerventil NG6, 350bar, 24VKREV 03-B20-024C","Distributeur électrique NG6KREV 03-B20-024C"]
["KREV03B20230A","SEV03B20",45,1,"Stuurventiel elektrisch NG6KREV 03-B20-230A","EA",300,null,"Stuurventiel elektrisch NG6KREV 03-B20-230A","Electric control valve NG6KREV 03-B20-230A","Steuerventil NG6, 350bar, 230VKREV 03-B20-230A","Distributeur électrique NG6KREV 03-B20-230A"]
["KREV03B3012C","SEV03B3",45,1,"Stuurschuif elekt. SEV-03-B3-012C NG6","EA",300,null,"Stuurschuif elekt. SEV-03-B3-012C NG6","Saturn Valve 4/2 - 12V-DC","Elektromagnetventil 4/2 NW6","Distributeur élect. SEV-03-B3-012C NG6"]
["KREV03B3024C","SEV03B3",45,1,"Stuurschuif elekt. SEV-03-B3-024C NG6","EA",300,null,"Stuurschuif elekt. SEV-03-B3-024C NG6","Saturn Valve 4/2 - 24V-DC","Elektromagnetventil 4/2 NW6","Distributeur élect. SEV-03-B3-024C NG6"]
["KREV03B3230A","SEV03B3",45,1,"Stuurventiel elektrisch NG6KREV 03-B3-230A","EA",300,null,"Stuurventiel elektrisch NG6KREV 03-B3-230A","Electric control valve NG6KREV 03-B3-230A","Steuerventil NG6, 350bar, 230VKREV 03-B3-230A","Distributeur électrique NG6KREV 03-B3-230A"]
["KREV03B3S012C","SEV03B3S",45,1,"Stuurventiel elektrisch NG6KREV 03-B3S-012C","EA",300,null,"Stuurventiel elektrisch NG6KREV 03-B3S-012C","Electric control valve NG6KREV 03-B3S-012C","Steuerventil NG6, 350bar, 12VKREV 03-B3S-012C","Distributeur électrique NG6KREV 03-B3S-012C"]
["KREV03B3S024C","SEV03B3S",45,1,"Stuurventiel elektrisch NG6KREV 03-B3S-024C","EA",300,null,"Stuurventiel elektrisch NG6KREV 03-B3S-024C","Electric control valve NG6KREV 03-B3S-024C","Steuerventil NG6, 350bar, 24VKREV 03-B3S-024C","Distributeur électrique NG6KREV 03-B3S-024C"]
["KREV03B3S230A","SEV03B3S",45,1,"Stuurventiel elektrisch NG6KREV 03-B3S-230A","EA",300,null,"Stuurventiel elektrisch NG6KREV 03-B3S-230A","Electric control valve NG6KREV 03-B3S-230A","Steuerventil NG6, 350bar, 230VKREV 03-B3S-230A","Distributeur électrique NG6KREV 03-B3S-230A"]
["KREV03C2012C","SEV03C2",45,2,"Stuurschuif elekt. SEV-03-C2-012C NG6","EA",300,null,"Stuurschuif elekt. SEV-03-C2-012C NG6","Saturn Valve 4/3 - 12V-DC","Elektromagnetventil 4/3 NW6","Distributeur élect. SEV-03-C2-012C NG6"]
["KREV03C2024C","SEV03C2",45,2,"Stuurschuif elekt. SEV-03-C2-024C NG6","EA",300,null,"Stuurschuif elekt. SEV-03-C2-024C NG6","Saturn Valve 4/3 - 24V-DC","Elektromagnetventil 4/3 NW6","Distributeur élect. SEV-03-C2-024C NG6"]
["KREV03C2230A","SEV03C2",45,2,"Stuurventiel elektrisch NG6KREV 03-C2-230A","EA",300,null,"Stuurventiel elektrisch NG6KREV 03-C2-230A","Electric control valve NG6KREV 03-C2-230A","Steuerventil NG6, 350bar, 230VKREV 03-C2-230A","Distributeur électrique NG6KREV 03-C2-230A"]
["KREV03C3012C","SEV03C3",45,2,"Stuurventiel elektrisch NG6KREV 03-C3-012C","EA",300,null,"Stuurventiel elektrisch NG6KREV 03-C3-012C","Electric control valve NG6KREV 03-C3-012C","Steuerventil NG6, 350bar, 12VKREV 03-C3-012C","Distributeur électrique NG6KREV 03-C3-012C"]
["KREV03C3024C","SEV03C3",45,2,"Stuurventiel elektrisch NG6KREV 03-C3-024C","EA",300,null,"Stuurventiel elektrisch NG6KREV 03-C3-024C","Electric control valve NG6KREV 03-C3-024C","Steuerventil NG6, 350bar, 24VKREV 03-C3-024C","Distributeur électrique NG6KREV 03-C3-024C"]
["KREV03C3230A","SEV03C3",45,2,"Stuurventiel elektrisch NG6KREV 03-C3-230A","EA",300,null,"Stuurventiel elektrisch NG6KREV 03-C3-230A","Electric control valve NG6KREV 03-C3-230A","Steuerventil NG6, 350bar, 230VKREV 03-C3-230A","Distributeur électrique NG6KREV 03-C3-230A"]
["KREV03C3B012C","SEV03C3B",45,1,"Stuurventiel elektrisch NG6KREV 03-C3B-012C","EA",300,null,"Stuurventiel elektrisch NG6KREV 03-C3B-012C","Electric control valve NG6KREV 03-C3B-012C","Steuerventil NG6, 350bar, 12VKREV 03-C3B-012C","Distributeur électrique NG6KREV 03-C3B-012C"]
["KREV03C3B024C","SEV03C3B",45,1,"Stuurventiel elektrisch NG6KREV 03-C3B-024C","EA",300,null,"Stuurventiel elektrisch NG6KREV 03-C3B-024C","Electric control valve NG6KREV 03-C3B-024C","Steuerventil NG6, 350bar, 24VKREV 03-C3B-024C","Distributeur électrique NG6KREV 03-C3B-024C"]
["KREV03C3B230A","SEV03C3B",45,1,"Stuurventiel elektrisch NG6KREV 03-C3B-230A","EA",300,null,"Stuurventiel elektrisch NG6KREV 03-C3B-230A","Electric control valve NG6KREV 03-C3B-230A","Steuerventil NG6, 350bar, 230VKREV 03-C3B-230A","Distributeur électrique NG6KREV 03-C3B-230A"]
["KREV03C4012C","SEV03C4",45,2,"Stuurschuif elekt. SEV-03-C4-012C NG6","EA",300,null,"Stuurschuif elekt. SEV-03-C4-012C NG6","Saturn Valve 4/3 - 12V-DC","Elektromagnetventil 4/3 NW6","Distributeur élect. SEV-03-C4-012C NG6"]
["KREV03C4024C","SEV03C4",45,2,"Stuurschuif elekt. SEV-03-C4-024C NG6","EA",300,null,"Stuurschuif elekt. SEV-03-C4-024C NG6","Saturn Valve 4/3 - 24V-DC","Elektromagnetventil 4/3 NW6","Distributeur élect. SEV-03-C4-024C NG6"]
["KREV03C4230A","SEV03C4",45,2,"Stuurventiel elektrisch NG6KREV 03-C4-230A","EA",300,null,"Stuurventiel elektrisch NG6KREV 03-C4-230A","Electric control valve NG6KREV 03-C4-230A","Steuerventil NG6, 350bar, 230VKREV 03-C4-230A","Distributeur électrique NG6KREV 03-C4-230A"]
["KREV03C6012C","SEV03C6",45,2,"Stuurschuif elekt. SEV-03-C6-012C NG6","EA",300,null,"Stuurschuif elekt. SEV-03-C6-012C NG6","Saturn Valve 4/3 - 12V-DC","Elektromagnetventil 4/3 NW6","Distributeur élect. SEV-03-C6-012C NG6"]
["KREV03C6024C","SEV03C6",45,2,"Stuurschuif elekt. SEV-03-C6-024C NG6","EA",300,null,"Stuurschuif elekt. SEV-03-C6-024C NG6","Saturn Valve 4/3 - 24V-DC","Elektromagnetventil 4/3 NW6","Distributeur élect. SEV-03-C6-024C NG6"]
["KREV03C6230A","SEV03C6",45,2,"Stuurventiel elektrisch NG6KREV 03-C6-230A","EA",300,null,"Stuurventiel elektrisch NG6KREV 03-C6-230A","Electric control valve NG6KREV 03-C6-230A","Steuerventil NG6, 350bar, 230VKREV 03-C6-230A","Distributeur électrique NG6KREV 03-C6-230A"]
["KREV03D2012C","SEV03D2",45,2,"Stuurventiel elektrisch NG6KREV 03-D20-12C","EA",300,null,"Stuurventiel elektrisch NG6KREV 03-D20-12C","Electric control valve NG6KREV 03-D20-12C","Steuerventil elektr. NG6KREV 03-D20-12C","Distributeur électrique NG6KREV 03-D20-12C"]
["KREV03D2024C","SEV03D2",45,2,"Stuurventiel elektrisch NG6KREV 03-D20-24C","EA",300,null,"Stuurventiel elektrisch NG6KREV 03-D20-24C","Electric control valve NG6KREV 03-D20-24C","Steuerventil elektr. NG6KREV 03-D20-24C","Distributeur électrique NG6KREV 03-D20-24C"]
["KREV03D2230A","SEV03D2",45,2,"Stuurventiel elektrisch NG6KREV 03-D20-230A","EA",300,null,"Stuurventiel elektrisch NG6KREV 03-D20-230A","Electric control valve NG6KREV 03-D20-230A","Steuerventil elektr. NG6KREV 03-D20-230A","Distributeur électrique NG6KREV 03-D20-230A"]
["KREV903230A",null,null,null,{"$f":"CHOOSE(SEL_LANGUAGE,I55,J55,K55,L55)","v":"Spoel voor SEV-03 230VAC"},"EA",300,null,"Spoel voor SEV-03 230VAC","Coil voor SEV-03 230VAC","Spule SEV-03 230VAC","Bobine pour SEV-03 230VAC"]
["KREV903DEK",null,30,null,"Afdekplaat SEV 03 NG6","EA",300,null,"Afdekplaat SEV 03 NG6","Blanking plate Cetop 03","Abdeckplatte SEV 03 NG6","Plaque de fermeture SEV 03 NG6"]
["KREV95125",null,null,null,"Set bouten M5x125 (4st.) NG6","EA",300,null,"Set bouten M5x125 (4st.) NG6","Bolt kit M5x125 (4x) Cetop03","Schraubensatz M5x125","Jeu de boulons M5x125 (4st.) NG6"]
["KREV95135",null,null,null,"Set bouten M5x135 (4st.) NG6","EA",300,null,"Set bouten M5x135 (4st.) NG6","Bolt kit M5x135 (4x) Cetop03","Schraubensatz M5x135","Jeu de boulons M5x135 (4st.) NG6"]
["KREV95145",null,null,null,"Set bouten M5x145 (4st.) NG6","SET",300,null,"Set bouten M5x145 (4st.) NG6","Bolt kit M5x145 (4x) Cetop03","Schraubensatz M5x145","Jeu de boulons M5x145 (4st.) NG6"]
["KREV95170",null,null,null,"Set bouten M5x170 (4st.) NG6","EA",300,null,"Set bouten M5x170 (4st.) NG6","Bolt kit M5x170 (4x) Cetop03","Schraubensatz M5x170","Jeu de boulons M5x170 (4st.) NG6"]
["KREV95180",null,null,null,"Set bouten M5x180 (4st.) NG6","SET",300,null,"Set bouten M5x180 (4st.) NG6","Bolt kit M5x180 (4x) Cetop03","Schraubensatz M5x180","Jeu de boulons M5x180 (4st.) NG6"]
["KREV9545",null,null,null,"Set bouten M5x45 (4st.) NG6","EA",300,null,"Set bouten M5x45 (4st.) NG6","Bolt kit M5x45 (4x) Cetop 03","Schraubensatz M5x45","Jeu de boulons M5x45 (4st.) NG6"]
["KREV9585",null,null,null,"Set bouten M5x85 (4st.) NG6","EA",300,null,"Set bouten M5x85 (4st.) NG6","Bolt kit M5x85 (4x) Cetop 03","Schraubensatz M5x85","Jeu de boulons M5x85 (4st.) NG6"]
["KREV9595",null,null,null,"Set bouten M5x95 (4st.) NG6","EA",300,null,"Set bouten M5x95 (4st.) NG6","Bolt kit M5x95 (4x) Cetop 03","Schraubensatz M5x95","Jeu de boulons M5x95 (4st.) NG6"]
["KRMC03P05","SMC03P05",40,null,"Terugslagklep SMC-03P-05 NG6","EA",300,null,"Terugslagklep SMC-03P-05 NG6","Check-Valve","Rückschlagventil NW6-0,5 BAR","Clapet anti-retour SMC-03P-05 NG6"]
["KRMPC03A","SMPC03A",40,null,"Gest. terugslagklep SMPC-03-A NG6 (veer 2Bar)","EA",300,null,"Gest. terugslagklep SMPC-03-A NG6 (veer 2Bar)","Pilot Check-Valve","Entsp.bares Rückschlagventil N","Clapet anti-retour piloté SMPC-03-A NG6 (ressort 2Bar)"]
["KRMPC03B","SMPC03B",40,null,"Gest. terugslagklep SMPC-03-B NG6","EA",300,null,"Gest. terugslagklep SMPC-03-B NG6","Pilot Check-Valve","Entsp.bares Rückschlagventil N","Clapet anti-retour piloté SMPC-03-B NG6"]
["KRMPC03W","SMPC03W",40,null,{"$f":"CHOOSE(SEL_LANGUAGE,I68,J68,K68,L68)","v":"Gest. terugslagklep SMPC-03W-4 NG6"},"EA",300,null,"Gest. terugslagklep SMPC-03W-4 NG6","Pilot Check-Valve","Entsp.bares Rückschlagventil N","Clapet anti-retour piloté SMPC-03W-4 NG6"]
["KRMPR03A3","SMPR03A3",40,null,"Reduceerklep SMPR-03-A-S-3/ P in A NG6","EA",300,null,"Reduceerklep SMPR-03-A-S-3/ P in A NG6","Reducing-Valve","Druckminderventil NW 6","Réducteur de pression SMPR-03-A-S-3/ P in A NG6"]
["KRMPR03B3","SMPR03B3",40,null,"Reduceerklep SMPR-03-B-S-3/P in B NG6","EA",300,null,"Reduceerklep SMPR-03-B-S-3/P in B NG6","Reducing-Valve","Druckminderventil NW 6","Réducteur de pression SMPR-03-B-S-3/P in B NG6"]
["KRMPR03P3","SMPR03P3",40,null,"Reduceerklep SMPR-03-P-S-3/P in P NG6","EA",300,null,"Reduceerklep SMPR-03-P-S-3/P in P NG6","Reducing-Valve","Druckminderventil NW 6","Réducteur de pression SMPR-03-P-S-3/P in P NG6"]
["KRMPS9030","SMPS030",40,null,"Tussenplaat MPS-03-0 PS ongeboord","EA",300,null,"Tussenplaat MPS-03-0 PS ongeboord","Intermediate Plate (no bore)","Zwischenplatte MPS-02-0","Plaque intermediaire MPS-03-0 PS non-foré"]
["KRMPS903A","SMPS03A",40,null,"Tussenplaat MPS-03-A PS in A-poort","EA",300,null,"Tussenplaat MPS-03-A PS in A-poort","Intermediate Plate A-Cetop 03","Zwischenplatte MPS-02-A","Plaque intermediaire MPS-03-A PS dans A"]
["KRMPS903B","SMPS03B",40,null,"Tussenplaat MPS-03-B PS in B-poort","EA",300,null,"Tussenplaat MPS-03-B PS in B-poort","Intermediate Plate B-Cetop 03","Zwischenplatte MPS-02-B","Plaque intermediaire MPS-03-B PS dans B"]
["KRMPS903P","SMPS03P",40,null,"Tussenplaat MPS-03-P PS in P-poort","EA",300,null,"Tussenplaat MPS-03-P PS in P-poort","Intermediate Plate P-Cetop 03","Zwischenplatte MPS-02-P","Plaque intermediaire MPS-03-P PS dans P"]
["KRMRF03A3","SMRF03A3",40,null,"Drukregelklep SMRF-03-A-S-3 NG6","EA",300,null,"Drukregelklep SMRF-03-A-S-3 NG6","Relief-Valve","Druckbegrenzungsventil NW 6","Régulateur de pression SMRF-03-A-S-3 NG6"]
["KRMRF03B3","SMRF03B3",40,null,"Drukregelklep SMRF-03-B-S-3 NG6","EA",300,null,"Drukregelklep SMRF-03-B-S-3 NG6","Relief-Valve","Druckbegrenzungsventil NW 6","Régulateur de pression SMRF-03-B-S-3 NG6"]
["KRMRF03C3","SMRF03C3",40,null,"Drukregelklep SMRF-03-C-S-3 NG6","EA",300,null,"Drukregelklep SMRF-03-C-S-3 NG6","Relief-Valve","Druckbegrenzungsventil NW 6","Régulateur de pression SMRF-03-C-S-3 NG6"]
["KRMRF03D3","SMRF03D3",40,null,"Drukregelklep SMRF-03-D-S-3 NG6","EA",300,null,"Drukregelklep SMRF-03-D-S-3 NG6","Relief-Valve","Druckbegrenzungsventil NW 6","Régulateur de pression SMRF-03-D-S-3 NG6"]
["KRMRF03P3","SMRF03P3",40,null,"Drukregelklep SMRF-03-P-S-3 NG6","EA",300,null,"Drukregelklep SMRF-03-P-S-3 NG6","Relief-Valve","Druckbegrenzungsventil NW 6","Régulateur de pression SMRF-03-P-S-3 NG6"]
["KRMTI03A","SMTI03A",40,null,"Smoorterugslagklep SMTI-03A-S A in NG6","EA",300,null,"Smoorterugslagklep SMTI-03A-S A in NG6","Throtted Check-Valve","Drosselrückschlagventil NW6","Etrangleur de débit unidirectionnel SMTI-03A-S A in NG6"]
["KRMTI03B","SMTI03B",40,null,"Smoorterugslagklep SMTI-03B-SB in NG6","EA",300,null,"Smoorterugslagklep SMTI-03B-SB in NG6","Throtted Check-Valve","Drosselrückschlagventil NW6","Etrangleur de débit unidirectionnel SMTI-03B-SB in NG6"]
["KRMTI03W","SMTI03W",40,null,"Smoorterugslagklep SMTI-03-W-S A+B in NG6","EA",300,null,"Smoorterugslagklep SMTI-03-W-S A+B in NG6","Throtted Check-Valve","Drosselrückschlagventil NW6","Etrangleur de débit unidirectionnel SMTI-03-W-S A+B in NG6"]
["KRMTO03A","SMTO03A",40,null,"Smoorterugslagklep SMTO-03-A-S A uit NG6","EA",300,null,"Smoorterugslagklep SMTO-03-A-S A uit NG6","Throtted Check-Valve","Drosselrückschlagventil NW6","Etrangleur de débit unidirectionnel SMTO-03-A-S A uit NG6"]
["KRMTO03B","SMTO03B",40,null,"Smoorterugslagklep SMTO-03-B-S B uit NG6","EA",300,null,"Smoorterugslagklep SMTO-03-B-S B uit NG6","Throtted Check-Valve","Drosselrückschlagventil NW6","Etrangleur de débit unidirectionnel SMTO-03-B-S B uit NG6"]
["KRMTO03W","SMTO03W",40,null,"Smoorterugslagklep SMTO-03W-S A+B uit NG6","EA",300,null,"Smoorterugslagklep SMTO-03W-S A+B uit NG6","Throtted Check-Valve","Drosselrückschlagventil NW6","Etrangleur de débit unidirectionnel SMTO-03W-S A+B uit NG6"]
["KSCB1",null,null,null,"Servicemonteur - Intern - 7-18 uur - ma-vr","HRS","300",null,"Servicemonteur - Intern - 7-18 uur - ma-vr","Service Technician - Internal - 7-18 uur Mon-Fri","Servicetechniker - Intern - 7-18 uur Mo-Fr","Service Technician - Internal - 7-18 uur - Lun-Ven"]
["KSCKLMAT",null,null,null,"<montage materiaal>","EA","300",null,"<montage materiaal>","<mounting material>","<Montagematerial>","<matériel de fixation>"]
["LVA1SA",null,null,null,{"$f":"CHOOSE(SEL_LANGUAGE,I89,J89,K89,L89)","v":"Peilglas"},"EA",300,null,"Peilglas","Gauge glasses","Schauglas","Indicateur de niveau"]
["LVA2SA",null,null,null,{"$f":"CHOOSE(SEL_LANGUAGE,I90,J90,K90,L90)","v":"Peilglas"},"EA",300,null,"Peilglas","Gauge glasses","Schauglas","Indicateur de niveau"]
["LVA1TA",null,null,null,"Temp/peilglas LVA 1-T-A","EA",300,null,"Temp/peilglas LVA 1-T-A","Gauge glasses with therm.","Schauglas mit Thermometer","Indicateur de niveau avec thermomètre LVA 1-T-A"]
["LVA2TA",null,null,null,"Temp/peilglas LVA 2-T-A","EA",300,null,"Temp/peilglas LVA 2-T-A","Gauge glasses with therm.","Schauglas mit Thermometer","Indicateur de niveau avec thermomètre LVA 2-T-A"]
["LVK10AM121T7",null,null,null,"Temp/peilglas met temperatuurschakelaar","EA",300,null,"Temp/peilglas met temperatuurschakelaar","Gauge glasses with therm. and thermal-switch","Schauglas mit Thermometer mit Thermische Schalter","Indicateur de niveau avec thermomètre & thermique commutateur"]
["LVK20AM121T7",null,null,null,"Temp/peilglas met temperatuurschakelaar","EA",300,null,"Temp/peilglas met temperatuurschakelaar","Gauge glasses with therm. and thermal-switch","Schauglas mit Thermometer mit Thermische Schalter","Indicateur de niveau avec thermomètre & thermique commutateur"]
["MA63100L04PLGF",null,null,null,"Manometer D. 63 0-100 Bar onderaansl.","EA",300,null,"Manometer D. 63 0-100 Bar onderaansl.","Gauge (back) d. 63 0-100 bar","Manometer D. 63 0-100 Bar .","Manomètre D. 63 0-100 Bar raccordement en dessous"]
["MA63160L04PLGF",null,null,null,"Manometer D. 63 0-160 Bar onderaansl.","EA",300,null,"Manometer D. 63 0-160 Bar onderaansl.","Gauge (back) d. 63 0-160 bar","Manometer D. 63 0-160 Bar .","Manomètre D. 63 0-160 Bar raccordement en dessous"]
["MA63250L04PLGF",null,null,null,"Manometer D. 63 0-250 Bar onderaansl.","EA",300,null,"Manometer D. 63 0-250 Bar onderaansl.","Gauge (back) d. 63 0-250 bar","Manometer D. 63 0-250 Bar .","Manomètre D. 63 0-250 Bar raccordement en dessous"]
["MEV2014",null,null,null,"Meetpuntkoppeling MEV 20-R 1/4\"","EA",300,null,"Meetpuntkoppeling MEV 20-R 1/4\"","Male-stud MEV 20-R 1/4\"","Messpunktverschraubung MEV 20-R 1/4\"","Raccord minimess MEV 20-R 1/4\""]
["MO410",null,null,null,"Drukregelklep patroon","EA",300,null,"Drukregelklep patroon","Relief-Valve cartridge","DBV Patrone","Cartouche régulateur de pression"]
["MO432",null,null,null,"Drukregelklep patroon","EA",300,null,"Drukregelklep patroon","Relief-Valve cartridge","DBV Patrone","Cartouche régulateur de pression"]
["MPPMVENC",null,null,null,"NC Daalklep handbediend","EA",300,null,"NC Daalklep handbediend","NC Lowering-valve manual operated","NC Senkventil handbedient","NC Valve de descente manuel"]
["MR31GZ",null,null,null,{"$f":"CHOOSE(SEL_LANGUAGE,I102,J102,K102,L102)","v":"Voetplaat MR3-1-G-Z"},"EA",300,null,"Voetplaat MR3-1-G-Z","Subplate bottom port 3/8\" 1 valve","Fussplatte NG6 1 Ventil","Embase MR3-1-G-Z"]
["MR32GZ",null,null,null,"Voetplaat MR3-2-G-Z NG6","EA",300,null,"Voetplaat MR3-2-G-Z NG6","Subplate bottom port 3/8\" 2 valves","Fussplatte NG6 2 Ventile","Embase MR3-2-G-Z NG6"]
["MR33GZ",null,null,null,"Voetplaat MR3-3-G-Z NG6","EA",300,null,"Voetplaat MR3-3-G-Z NG6","Subplate bottom port 3/8\" 3 valves","Fussplatte NG6 3 Ventile","Embase MR3-3-G-Z NG6"]
["MR34GZ",null,null,null,"Voetplaat MR3-4-G-Z NG6","EA",300,null,"Voetplaat MR3-4-G-Z NG6","Subplate bottom port 3/8\" 4 valves","Fussplatte NG6 4 Ventile","Embase MR3-4-G-Z NG6"]
["MR35GZ",null,null,null,"Voetplaat MR3-5-G-Z NG6","EA",300,null,"Voetplaat MR3-5-G-Z NG6","Subplate bottom port 3/8\" 5 valves","Fussplatte NG6 5 Ventile","Embase MR3-5-G-Z NG6"]
["MR36GZ",null,null,null,"Voetplaat MR3-6-G-Z NG6","EA",300,null,"Voetplaat MR3-6-G-Z NG6","Subplate bottom port 3/8\" 6 valves","Fussplatte NG6 6 Ventile","Embase MR3-6-G-Z NG6"]
["MR37GZ",null,null,null,"Voetplaat MR3-7-G-Z NG6","EA",300,null,"Voetplaat MR3-7-G-Z NG6","Subplate bottom port 3/8\" 7 valves","Fussplatte NG6 7 Ventile","Embase MR3-7-G-Z NG6"]
["MR38GZ",null,null,null,"Voetplaat MR3-8-G-Z NG6","EA",300,null,"Voetplaat MR3-8-G-Z NG6","Subplate bottom port 3/8\" 8 valves","Fussplatte NG6 8 Ventile","Embase MR3-8-G-Z NG6"]
["OR262",null,null,null,"O-ring 26 x 2","EA",300,null,"O-ring 26 x 2","O-ring 26 x 2","O-ring 26 x 2","O-ring 26 x 2"]
["PU10AAM0B",null,null,null,"2-weg stroomregelklep patroon","EA",300,null,"2-weg stroomregelklep patroon","2-way Flowcontrol-Valve cartridge","2-Wege Stromregel Patrone","Cartouche régulateur de débit 2-voie"]
["REDR1214WD",null,null,null,"Verloopnippel REDR 1/2-1/4 BU-BI","EA",300,null,"Verloopnippel REDR 1/2-1/4 BU-BI","Adapter M/F 1/2-1/4 BSP","Reduzierverschraubung","Adaptateur REDR 1/2-1/4 BU-BI"]
["SD9M1612D26WDN",null,null,null,"Spoel M16, 12VDC, 26W DN","EA",300,null,"Spoel M16, 12VDC, 26W DN","Coil M16, 12VDC, 26W DN","Spule M16, 12VDC, 26W DN","Bobine M16, 12VDC, 26W DN"]
["SD9M1624D26WDN",null,null,null,"Spoel M16, 24VDC, 26W DN","EA",300,null,"Spoel M16, 24VDC, 26W DN","Coil M16, 24VDC, 26W DN","Spule M16, 24VDC, 26W DN","Bobine M16, 24VDC, 26W DN"]
["SP08M",null,null,null,"Schroefplug kunststof 1/2 BSPafd.ring Ø27mm","EA",300,null,"Schroefplug kunststof 1/2 BSPafd.ring Ø27mm","Dust Plug 1/2 BSP","Staubkappe AG 1/2","Bouchon à visser BSPafd.ring Ø27mm"]
["SP666",null,null,null,"Stekker SP 666 standaard","EA",300,null,"Stekker SP 666 standaard","Hirschmann connector","Stecker","Fiche SP 666 standard"]
["SSM6608",null,null,null,"Smoring-stelbout M8x8 0.8 mm DIN 916","EA",300,null,"Smoring-stelbout M8x8 0.8 mm DIN 916","Throttle M8x8 0.8 mm DIN 916","Drossel M8x8 0.8 mm DIN 916","Etranglement-visse M8x8 0.8 mm DIN 916"]
["SSM6610",null,null,null,"Smoring-stelbout M8x8 1.0 mm DIN 916","EA",300,null,"Smoring-stelbout M8x8 1.0 mm DIN 916","Throttle M8x8 1.0 mm DIN 916","Drossel M8x8 1.0 mm DIN 916","Etranglement-visse M8x8 1.0 mm DIN 916"]
["SSM6612",null,null,null,"Smoring-stelbout M8x8 1.2 mm DIN 916","EA",300,null,"Smoring-stelbout M8x8 1.2 mm DIN 916","Throttle M8x8 1.2 mm DIN 916","Drossel M8x8 1.2 mm DIN 916","Etranglement-visse M8x8 1.2 mm DIN 916"]
["SSM8808BR",null,null,null,"Smoring-stelbout M8x8 0.8 mm DIN 551","EA",300,null,"Smoring-stelbout M8x8 0.8 mm DIN 551","Throttle M8x8 0.8 mm DIN 551","Drossel M8x8 0.8 mm DIN 551","Etranglement-visse M8x8 0.8 mm DIN 551"]
["SSM8810BR",null,null,null,"Smoring-stelbout M8x8 1.0 mm DIN 551","EA",300,null,"Smoring-stelbout M8x8 1.0 mm DIN 551","Throttle M8x8 1.0 mm DIN 551","Drossel M8x8 1.0 mm DIN 551","Etranglement-visse M8x8 1.0 mm DIN 551"]
["SSM8813BR",null,null,null,"Smoring-stelbout M8x8 1.3 mm DIN 551","EA",300,null,"Smoring-stelbout M8x8 1.3 mm DIN 551","Throttle M8x8 1.3 mm DIN 551","Drossel M8x8 1.3 mm DIN 551","Etranglement-visse M8x8 1.3 mm DIN 551"]
["SSM8816BR",null,null,null,"Smoring-stelbout M8x8 1.6 mm DIN 551","EA",300,null,"Smoring-stelbout M8x8 1.6 mm DIN 551","Throttle M8x8 1.6 mm DIN 551","Drossel M8x8 1.6 mm DIN 551","Etranglement-visse M8x8 1.6 mm DIN 551"]
["SSM8820BR",null,null,null,"Smoring-stelbout M8x8 2.0 mm DIN 551","EA",300,null,"Smoring-stelbout M8x8 2.0 mm DIN 551","Throttle M8x8 2.0 mm DIN 551","Drossel M8x8 2.0 mm DIN 551","Etranglement-visse M8x8 2.0 mm DIN 551"]
["SVP10NC00B00",null,null,1,"NC 2/2 klep A06 patroon","EA",300,null,"NC 2/2 klep A06 patroon","NC 2/2 valve A06 cartridge","NC 2/2 ventil A06 patrone","Cartouche vanne NC 2/2 A06"]
["SVP10NCR00B00",null,null,null,"2/2 klep patroon CP500-3-B-0-NC excl. spoel","EA",300,null,"2/2 klep patroon CP500-3-B-0-NC excl. spoel","Solenoid valve NC","Patrone ohne Spule 2/2 NC","Cartouche vanne 2/2 CP500-3-B-0-NC excl. Bobine"]
["SVP10NO00B00",null,null,1,"NO 2/2 klep A06 patroon","EA",300,null,"NO 2/2 klep A06 patroon","NO 2/2 valve A06 cartridge","NO 2/2 ventil A06 patrone","Cartouche vanne NO 2/2 A06"]
["SVP10NOR00B00",null,null,null,"2/2 klep patroon CP500-4-B-0-NO excl. spoel","EA",300,null,"2/2 klep patroon CP500-4-B-0-NO excl. spoel","Solenoid valve NO","Patrone ohne Spule 2/2 NO","Cartouche vanne 2/2 CP500-4-B-0-NO excl. Bobine"]
["VS12LS",null,null,null,"Afsluitdop VS 12 L/S","EA",300,null,"Afsluitdop VS 12 L/S","End Plug (Cutting Ring) 12L/S","Stopfen","Bouchon VS 12 L/S"]
["VS15L",null,null,null,"Afsluitdop VS 15 L","EA",300,null,"Afsluitdop VS 15 L","End Plug (Cutting Ring) 15L","Stopfen","Bouchon VS 15 L"]
["VSR04WD",null,null,null,"Afsluitplug inbus VSR 1/4 BSP WD","EA",300,null,"Afsluitplug inbus VSR 1/4 BSP WD","Sealing plug (CS) 1/4 BSP -WD","Stopfen 1/4","Bouchon à six pans creux VSR 1/4 BSP WD"]
["VSR08WD",null,null,null,"Afsluitplug inbus VSR 1/2 BSP WD","EA",300,null,"Afsluitplug inbus VSR 1/2 BSP WD","Sealing plug (CS) 1/2 BSP -WD","Stopfen 1/2","Bouchon à six pans creux VSR 1/2 BSP WD"]
["PP3A1HF",null,null,null,{"$f":"CHOOSE(SEL_LANGUAGE,I133,J133,K133,L133)","v":"PowerPack 30L, 4cc, 2.2 kW"},"","","BOMDET","PowerPack 30L, 4cc, 2.2 kW","PowerPack 30L, 4cc, 2.2 kW","Hydraulik Aggregat 30L, 4cc, 2.2 kW","Centrale hydraulique 30L, 4cc, 2.2 kW"]
["PP3A2HF",null,null,null,"PowerPack 30L, 4cc, 2.2 kW","","","BOMDET","PowerPack 30L, 4cc, 2.2 kW","PowerPack 30L, 4cc, 2.2 kW","Hydraulik Aggregat 30L, 4cc, 2.2 kW","Centrale hydraulique 30L, 4cc, 2.2 kW"]
["PP3A3HF",null,null,null,"PowerPack 30L, 4cc, 3 kW","","","BOMDET","PowerPack 30L, 4cc, 3 kW","PowerPack 30L, 4cc, 3 kW","Hydraulik Aggregat 30L, 4cc, 3 kW","Centrale hydraulique 30L, 4cc, 3 kW"]
["PP3A4HF",null,null,null,"PowerPack 30L, 4cc, 4 kW","","","BOMDET","PowerPack 30L, 4cc, 4 kW","PowerPack 30L, 4cc, 4 kW","Hydraulik Aggregat 30L, 4cc, 4 kW","Centrale hydraulique 30L, 4cc, 4 kW"]
["PP3B1HF",null,null,null,"PowerPack 30L, 6cc, 2.2 kW","","","BOMDET","PowerPack 30L, 6cc, 2.2 kW","PowerPack 30L, 6cc, 2.2 kW","Hydraulik Aggregat 30L, 6cc, 2.2 kW","Centrale hydraulique 30L, 6cc, 2.2 kW"]
["PP3B2HF",null,null,null,"PowerPack 30L, 6cc, 2.2 kW","","","BOMDET","PowerPack 30L, 6cc, 2.2 kW","PowerPack 30L, 6cc, 2.2 kW","Hydraulik Aggregat 30L, 6cc, 2.2 kW","Centrale hydraulique 30L, 6cc, 2.2 kW"]
["PP3B3HF",null,null,null,"PowerPack 30L, 6cc, 3 kW","","","BOMDET","PowerPack 30L, 6cc, 3 kW","PowerPack 30L, 6cc, 3 kW","Hydraulik Aggregat 30L, 6cc, 3 kW","Centrale hydraulique 30L, 6cc, 3 kW"]
["PP3B4HF",null,null,null,"PowerPack 30L, 6cc, 4 kW","","","BOMDET","PowerPack 30L, 6cc, 4 kW","PowerPack 30L, 6cc, 4 kW","Hydraulik Aggregat 30L, 6cc, 4 kW","Centrale hydraulique 30L, 6cc, 4 kW"]
["PP3C1HF",null,null,null,"PowerPack 30L, 8cc, 2.2 kW","","","BOMDET","PowerPack 30L, 8cc, 2.2 kW","PowerPack 30L, 8cc, 2.2 kW","Hydraulik Aggregat 30L, 8cc, 2.2 kW","Centrale hydraulique 30L, 8cc, 2.2 kW"]
["PP3C2HF",null,null,null,"PowerPack 30L, 8cc, 2.2 kW","","","BOMDET","PowerPack 30L, 8cc, 2.2 kW","PowerPack 30L, 8cc, 2.2 kW","Hydraulik Aggregat 30L, 8cc, 2.2 kW","Centrale hydraulique 30L, 8cc, 2.2 kW"]
["PP3C3HF",null,null,null,"PowerPack 30L, 8cc, 3 kW","","","BOMDET","PowerPack 30L, 8cc, 3 kW","PowerPack 30L, 8cc, 3 kW","Hydraulik Aggregat 30L, 8cc, 3 kW","Centrale hydraulique 30L, 8cc, 3 kW"]
["PP3C4HF",null,null,null,"PowerPack 30L, 8cc, 4 kW","","","BOMDET","PowerPack 30L, 8cc, 4 kW","PowerPack 30L, 8cc, 4 kW","Hydraulik Aggregat 30L, 8cc, 4 kW","Centrale hydraulique 30L, 8cc, 4 kW"]
["PP3D1HF",null,null,null,"PowerPack 30L, 11cc, 2.2 kW","","","BOMDET","PowerPack 30L, 11cc, 2.2 kW","PowerPack 30L, 11cc, 2.2 kW","Hydraulik Aggregat 30L, 11cc, 2.2 kW","Centrale hydraulique 30L, 11cc, 2.2 kW"]
["PP3D2HF",null,null,null,"PowerPack 30L, 11cc, 2.2 kW","","","BOMDET","PowerPack 30L, 11cc, 2.2 kW","PowerPack 30L, 11cc, 2.2 kW","Hydraulik Aggregat 30L, 11cc, 2.2 kW","Centrale hydraulique 30L, 11cc, 2.2 kW"]
["PP3D3HF",null,null,null,"PowerPack 30L, 11cc, 3 kW","","","BOMDET","PowerPack 30L, 11cc, 3 kW","PowerPack 30L, 11cc, 3 kW","Hydraulik Aggregat 30L, 11cc, 3 kW","Centrale hydraulique 30L, 11cc, 3 kW"]
["PP3D4HF",null,null,null,"PowerPack 30L, 11cc, 4 kW","","","BOMDET","PowerPack 30L, 11cc, 4 kW","PowerPack 30L, 11cc, 4 kW","Hydraulik Aggregat 30L, 11cc, 4 kW","Centrale hydraulique 30L, 11cc, 4 kW"]
["PP3E1HF",null,null,null,"PowerPack 30L, 14cc, 2.2 kW","","","BOMDET","PowerPack 30L, 14cc, 2.2 kW","PowerPack 30L, 14cc, 2.2 kW","Hydraulik Aggregat 30L, 14cc, 2.2 kW","Centrale hydraulique 30L, 14cc, 2.2 kW"]
["PP3E2HF",null,null,null,"PowerPack 30L, 14cc, 2.2 kW","","","BOMDET","PowerPack 30L, 14cc, 2.2 kW","PowerPack 30L, 14cc, 2.2 kW","Hydraulik Aggregat 30L, 14cc, 2.2 kW","Centrale hydraulique 30L, 14cc, 2.2 kW"]
["PP3E3HF",null,null,null,"PowerPack 30L, 14cc, 3 kW","","","BOMDET","PowerPack 30L, 14cc, 3 kW","PowerPack 30L, 14cc, 3 kW","Hydraulik Aggregat 30L, 14cc, 3 kW","Centrale hydraulique 30L, 14cc, 3 kW"]
["PP3E4HF",null,null,null,"PowerPack 30L, 14cc, 4 kW","","","BOMDET","PowerPack 30L, 14cc, 4 kW","PowerPack 30L, 14cc, 4 kW","Hydraulik Aggregat 30L, 14cc, 4 kW","Centrale hydraulique 30L, 14cc, 4 kW"]
["PP3F1HF",null,null,null,"PowerPack 30L, 16cc, 2.2 kW","","","BOMDET","PowerPack 30L, 16cc, 2.2 kW","PowerPack 30L, 16cc, 2.2 kW","Hydraulik Aggregat 30L, 16cc, 2.2 kW","Centrale hydraulique 30L, 16cc, 2.2 kW"]
["PP3F2HF",null,null,null,"PowerPack 30L, 16cc, 2.2 kW","","","BOMDET","PowerPack 30L, 16cc, 2.2 kW","PowerPack 30L, 16cc, 2.2 kW","Hydraulik Aggregat 30L, 16cc, 2.2 kW","Centrale hydraulique 30L, 16cc, 2.2 kW"]
["PP3F3HF",null,null,null,"PowerPack 30L, 16cc, 3 kW","","","BOMDET","PowerPack 30L, 16cc, 3 kW","PowerPack 30L, 16cc, 3 kW","Hydraulik Aggregat 30L, 16cc, 3 kW","Centrale hydraulique 30L, 16cc, 3 kW"]
["PP3F4HF",null,null,null,"PowerPack 30L, 16cc, 4 kW","","","BOMDET","PowerPack 30L, 16cc, 4 kW","PowerPack 30L, 16cc, 4 kW","Hydraulik Aggregat 30L, 16cc, 4 kW","Centrale hydraulique 30L, 16cc, 4 kW"]
["PP3G1HF",null,null,null,"PowerPack 30L, 20cc, 2.2 kW","","","BOMDET","PowerPack 30L, 20cc, 2.2 kW","PowerPack 30L, 20cc, 2.2 kW","Hydraulik Aggregat 30L, 20cc, 2.2 kW","Centrale hydraulique 30L, 20cc, 2.2 kW"]
["PP3G2HF",null,null,null,"PowerPack 30L, 20cc, 2.2 kW","","","BOMDET","PowerPack 30L, 20cc, 2.2 kW","PowerPack 30L, 20cc, 2.2 kW","Hydraulik Aggregat 30L, 20cc, 2.2 kW","Centrale hydraulique 30L, 20cc, 2.2 kW"]
["PP3G3HF",null,null,null,{"$f":"CHOOSE(SEL_LANGUAGE,I159,J159,K159,L159)","v":"PowerPack 30L, 20cc, 3 kW"},"","","BOMDET","PowerPack 30L, 20cc, 3 kW","PowerPack 30L, 20cc, 3 kW","Hydraulik Aggregat 30L, 20cc, 3 kW","Centrale hydraulique 30L, 20cc, 3 kW"]
["PP3G4HF",null,null,null,"PowerPack 30L, 20cc, 4 kW","","","BOMDET","PowerPack 30L, 20cc, 4 kW","PowerPack 30L, 20cc, 4 kW","Hydraulik Aggregat 30L, 20cc, 4 kW","Centrale hydraulique 30L, 20cc, 4 kW"]
["PP3P1HF",null,null,null,"PowerPack 30L, 1cc, 2.2 kW","","","BOMDET","PowerPack 30L, 1cc, 2.2 kW","PowerPack 30L, 1cc, 2.2 kW","Hydraulik Aggregat 30L, 1cc, 2.2 kW","Centrale hydraulique 30L, 1cc, 2.2 kW"]
["PP3P2HF",null,null,null,"PowerPack 30L, 1cc, 2.2 kW","","","BOMDET","PowerPack 30L, 1cc, 2.2 kW","PowerPack 30L, 1cc, 2.2 kW","Hydraulik Aggregat 30L, 1cc, 2.2 kW","Centrale hydraulique 30L, 1cc, 2.2 kW"]
["PP3Q1HF",null,null,null,"PowerPack 30L, 2cc, 2.2 kW","","","BOMDET","PowerPack 30L, 2cc, 2.2 kW","PowerPack 30L, 2cc, 2.2 kW","Hydraulik Aggregat 30L, 2cc, 2.2 kW","Centrale hydraulique 30L, 2cc, 2.2 kW"]
["PP3Q2HF",null,null,null,"PowerPack 30L, 2cc, 2.2 kW","","","BOMDET","PowerPack 30L, 2cc, 2.2 kW","PowerPack 30L, 2cc, 2.2 kW","Hydraulik Aggregat 30L, 2cc, 2.2 kW","Centrale hydraulique 30L, 2cc, 2.2 kW"]
["PP3R1HF",null,null,null,"PowerPack 30L, 3cc, 2.2 kW","","","BOMDET","PowerPack 30L, 3cc, 2.2 kW","PowerPack 30L, 3cc, 2.2 kW","Hydraulik Aggregat 30L, 3cc, 2.2 kW","Centrale hydraulique 30L, 3cc, 2.2 kW"]
["PP3R2HF",null,null,null,"PowerPack 30L, 3cc, 2.2 kW","","","BOMDET","PowerPack 30L, 3cc, 2.2 kW","PowerPack 30L, 3cc, 2.2 kW","Hydraulik Aggregat 30L, 3cc, 2.2 kW","Centrale hydraulique 30L, 3cc, 2.2 kW"]
["PP3S1HF",null,null,null,"PowerPack 30L, 4cc, 2.2 kW","","","BOMDET","PowerPack 30L, 4cc, 2.2 kW","PowerPack 30L, 4cc, 2.2 kW","Hydraulik Aggregat 30L, 4cc, 2.2 kW","Centrale hydraulique 30L, 4cc, 2.2 kW"]
["PP3S2HF",null,null,null,"PowerPack 30L, 4cc, 2.2 kW","","","BOMDET","PowerPack 30L, 4cc, 2.2 kW","PowerPack 30L, 4cc, 2.2 kW","Hydraulik Aggregat 30L, 4cc, 2.2 kW","Centrale hydraulique 30L, 4cc, 2.2 kW"]
["PP3S3HF",null,null,null,"PowerPack 30L, 4cc, 3 kW","","","BOMDET","PowerPack 30L, 4cc, 3 kW","PowerPack 30L, 4cc, 3 kW","Hydraulik Aggregat 30L, 4cc, 3 kW","Centrale hydraulique 30L, 4cc, 3 kW"]
["PP4A1HF",null,null,null,"PowerPack 44L, 4cc, 2.2 kW","","","BOMDET","PowerPack 44L, 4cc, 2.2 kW","PowerPack 44L, 4cc, 2.2 kW","Hydraulik Aggregat 44L, 4cc, 2.2 kW","Centrale hydraulique 44L, 4cc, 2.2 kW"]
["PP4A2HF",null,null,null,"PowerPack 44L, 4cc, 2.2 kW","","","BOMDET","PowerPack 44L, 4cc, 2.2 kW","PowerPack 44L, 4cc, 2.2 kW","Hydraulik Aggregat 44L, 4cc, 2.2 kW","Centrale hydraulique 44L, 4cc, 2.2 kW"]
["PP4A3HF",null,null,null,"PowerPack 44L, 4cc, 3 kW","","","BOMDET","PowerPack 44L, 4cc, 3 kW","PowerPack 44L, 4cc, 3 kW","Hydraulik Aggregat 44L, 4cc, 3 kW","Centrale hydraulique 44L, 4cc, 3 kW"]
["PP4A4HF",null,null,null,"PowerPack 44L, 4cc, 4 kW","","","BOMDET","PowerPack 44L, 4cc, 4 kW","PowerPack 44L, 4cc, 4 kW","Hydraulik Aggregat 44L, 4cc, 4 kW","Centrale hydraulique 44L, 4cc, 4 kW"]
["PP4B1HF",null,null,null,"PowerPack 44L, 6cc, 2.2 kW","","","BOMDET","PowerPack 44L, 6cc, 2.2 kW","PowerPack 44L, 6cc, 2.2 kW","Hydraulik Aggregat 44L, 6cc, 2.2 kW","Centrale hydraulique 44L, 6cc, 2.2 kW"]
["PP4B2HF",null,null,null,"PowerPack 44L, 6cc, 2.2 kW","","","BOMDET","PowerPack 44L, 6cc, 2.2 kW","PowerPack 44L, 6cc, 2.2 kW","Hydraulik Aggregat 44L, 6cc, 2.2 kW","Centrale hydraulique 44L, 6cc, 2.2 kW"]
["PP4B3HF",null,null,null,"PowerPack 44L, 6cc, 3 kW","","","BOMDET","PowerPack 44L, 6cc, 3 kW","PowerPack 44L, 6cc, 3 kW","Hydraulik Aggregat 44L, 6cc, 3 kW","Centrale hydraulique 44L, 6cc, 3 kW"]
["PP4B4HF",null,null,null,"PowerPack 44L, 6cc, 4 kW","","","BOMDET","PowerPack 44L, 6cc, 4 kW","PowerPack 44L, 6cc, 4 kW","Hydraulik Aggregat 44L, 6cc, 4 kW","Centrale hydraulique 44L, 6cc, 4 kW"]
["PP4B5HF",null,null,null,"PowerPack 44L, 6cc, 5,5 kW","","","BOMDET","PowerPack 44L, 6cc, 5,5 kW","PowerPack 44L, 6cc, 5,5 kW","Hydraulik Aggregat 44L, 6cc, 5,5 kW","Centrale hydraulique 44L, 6cc, 5,5 kW"]
["PP4C1HF",null,null,null,"PowerPack 44L, 8cc, 2.2 kW","","","BOMDET","PowerPack 44L, 8cc, 2.2 kW","PowerPack 44L, 8cc, 2.2 kW","Hydraulik Aggregat 44L, 8cc, 2.2 kW","Centrale hydraulique 44L, 8cc, 2.2 kW"]
["PP4C2HF",null,null,null,"PowerPack 44L, 8cc, 2.2 kW","","","BOMDET","PowerPack 44L, 8cc, 2.2 kW","PowerPack 44L, 8cc, 2.2 kW","Hydraulik Aggregat 44L, 8cc, 2.2 kW","Centrale hydraulique 44L, 8cc, 2.2 kW"]
["PP4C3HF",null,null,null,"PowerPack 44L, 8cc, 3 kW","","","BOMDET","PowerPack 44L, 8cc, 3 kW","PowerPack 44L, 8cc, 3 kW","Hydraulik Aggregat 44L, 8cc, 3 kW","Centrale hydraulique 44L, 8cc, 3 kW"]
["PP4C4HF",null,null,null,"PowerPack 44L, 8cc, 4 kW","","","BOMDET","PowerPack 44L, 8cc, 4 kW","PowerPack 44L, 8cc, 4 kW","Hydraulik Aggregat 44L, 8cc, 4 kW","Centrale hydraulique 44L, 8cc, 4 kW"]
["PP4C5HF",null,null,null,"PowerPack 44L, 8cc, 5,5 kW","","","BOMDET","PowerPack 44L, 8cc, 5,5 kW","PowerPack 44L, 8cc, 5,5 kW","Hydraulik Aggregat 44L, 8cc, 5,5 kW","Centrale hydraulique 44L, 8cc, 5,5 kW"]
["PP4D1HF",null,null,null,"PowerPack 44L, 11cc, 2.2 kW","","","BOMDET","PowerPack 44L, 11cc, 2.2 kW","PowerPack 44L, 11cc, 2.2 kW","Hydraulik Aggregat 44L, 11cc, 2.2 kW","Centrale hydraulique 44L, 11cc, 2.2 kW"]
["PP4D2HF",null,null,null,"PowerPack 44L, 11cc, 2.2 kW","","","BOMDET","PowerPack 44L, 11cc, 2.2 kW","PowerPack 44L, 11cc, 2.2 kW","Hydraulik Aggregat 44L, 11cc, 2.2 kW","Centrale hydraulique 44L, 11cc, 2.2 kW"]
["PP4D3HF",null,null,null,"PowerPack 44L, 11cc, 3 kW","","","BOMDET","PowerPack 44L, 11cc, 3 kW","PowerPack 44L, 11cc, 3 kW","Hydraulik Aggregat 44L, 11cc, 3 kW","Centrale hydraulique 44L, 11cc, 3 kW"]
["PP4D4HF",null,null,null,"PowerPack 44L, 11cc, 4 kW","","","BOMDET","PowerPack 44L, 11cc, 4 kW","PowerPack 44L, 11cc, 4 kW","Hydraulik Aggregat 44L, 11cc, 4 kW","Centrale hydraulique 44L, 11cc, 4 kW"]
["PP4D5HF",null,null,null,"PowerPack 44L, 11cc, 5.5 kW","","","BOMDET","PowerPack 44L, 11cc, 5.5 kW","PowerPack 44L, 11cc, 5.5 kW","Hydraulik Aggregat 44L, 11cc, 5.5 kW","Centrale hydraulique 44L, 11cc, 5.5 kW"]
["PP4D7HF",null,null,null,"PowerPack 44L, 11cc, 7.5 kW","","","BOMDET","PowerPack 44L, 11cc, 7.5 kW","PowerPack 44L, 11cc, 7.5 kW","Hydraulik Aggregat 44L, 11cc, 7.5 kW","Centrale hydraulique 44L, 11cc, 7.5 kW"]
["PP4E1HF",null,null,null,"PowerPack 44L, 14cc, 2.2 kW","","","BOMDET","PowerPack 44L, 14cc, 2.2 kW","PowerPack 44L, 14cc, 2.2 kW","Hydraulik Aggregat 44L, 14cc, 2.2 kW","Centrale hydraulique 44L, 14cc, 2.2 kW"]
["PP4E2HF",null,null,null,"PowerPack 44L, 14cc, 2.2 kW","","","BOMDET","PowerPack 44L, 14cc, 2.2 kW","PowerPack 44L, 14cc, 2.2 kW","Hydraulik Aggregat 44L, 14cc, 2.2 kW","Centrale hydraulique 44L, 14cc, 2.2 kW"]
["PP4E3HF",null,null,null,"PowerPack 44L, 14cc, 3 kW","","","BOMDET","PowerPack 44L, 14cc, 3 kW","PowerPack 44L, 14cc, 3 kW","Hydraulik Aggregat 44L, 14cc, 3 kW","Centrale hydraulique 44L, 14cc, 3 kW"]
["PP4E4HF",null,null,null,"PowerPack 44L, 14cc, 4 kW","","","BOMDET","PowerPack 44L, 14cc, 4 kW","PowerPack 44L, 14cc, 4 kW","Hydraulik Aggregat 44L, 14cc, 4 kW","Centrale hydraulique 44L, 14cc, 4 kW"]
["PP4E5HF",null,null,null,"PowerPack 44L, 14cc, 5.5 kW","","","BOMDET","PowerPack 44L, 14cc, 5.5 kW","PowerPack 44L, 14cc, 5.5 kW","Hydraulik Aggregat 44L, 14cc, 5.5 kW","Centrale hydraulique 44L, 14cc, 5.5 kW"]
["PP4E7HF",null,null,null,"PowerPack 44L, 14cc, 7.5 kW","","","BOMDET","PowerPack 44L, 14cc, 7.5 kW","PowerPack 44L, 14cc, 7.5 kW","Hydraulik Aggregat 44L, 14cc, 7.5 kW","Centrale hydraulique 44L, 14cc, 7.5 kW"]
["PP4F1HF",null,null,null,"PowerPack 44L, 16cc, 2,2 kW","","","BOMDET","PowerPack 44L, 16cc, 2,2 kW","PowerPack 44L, 16cc, 2,2 kW","Hydraulik Aggregat 44L, 16cc, 2,2 kW","Centrale hydraulique 44L, 16cc, 2,2 kW"]
["PP4F2HF",null,null,null,"PowerPack 44L, 16cc, 2,2 kW","","","BOMDET","PowerPack 44L, 16cc, 2,2 kW","PowerPack 44L, 16cc, 2,2 kW","Hydraulik Aggregat 44L, 16cc, 2,2 kW","Centrale hydraulique 44L, 16cc, 2,2 kW"]
["PP4F3HF",null,null,null,"PowerPack 44L, 16cc, 3 kW","","","BOMDET","PowerPack 44L, 16cc, 3 kW","PowerPack 44L, 16cc, 3 kW","Hydraulik Aggregat 44L, 16cc, 3 kW","Centrale hydraulique 44L, 16cc, 3 kW"]
["PP4F4HF",null,null,null,"PowerPack 44L, 16cc, 4 kW","","","BOMDET","PowerPack 44L, 16cc, 4 kW","PowerPack 44L, 16cc, 4 kW","Hydraulik Aggregat 44L, 16cc, 4 kW","Centrale hydraulique 44L, 16cc, 4 kW"]
["PP4F5HF",null,null,null,"PowerPack 44L, 16cc, 5.5 kW","","","BOMDET","PowerPack 44L, 16cc, 5.5 kW","PowerPack 44L, 16cc, 5.5 kW","Hydraulik Aggregat 44L, 16cc, 5.5 kW","Centrale hydraulique 44L, 16cc, 5.5 kW"]
["PP4F7HF",null,null,null,"PowerPack 44L, 16cc, 7.5 kW","","","BOMDET","PowerPack 44L, 16cc, 7.5 kW","PowerPack 44L, 16cc, 7.5 kW","Hydraulik Aggregat 44L, 16cc, 7.5 kW","Centrale hydraulique 44L, 16cc, 7.5 kW"]
["PP4G1HF",null,null,null,"PowerPack 44L, 20cc, 2,2 kW","","","BOMDET","PowerPack 44L, 20cc, 2,2 kW","PowerPack 44L, 20cc, 2,2 kW","Hydraulik Aggregat 44L, 20cc, 2,2 kW","Centrale hydraulique 44L, 20cc, 2,2 kW"]
["PP4G2HF",null,null,null,"PowerPack 44L, 20cc, 2,2 kW","","","BOMDET","PowerPack 44L, 20cc, 2,2 kW","PowerPack 44L, 20cc, 2,2 kW","Hydraulik Aggregat 44L, 20cc, 2,2 kW","Centrale hydraulique 44L, 20cc, 2,2 kW"]
["PP4G3HF",null,null,null,"PowerPack 44L, 20cc, 3 kW","","","BOMDET","PowerPack 44L, 20cc, 3 kW","PowerPack 44L, 20cc, 3 kW","Hydraulik Aggregat 44L, 20cc, 3 kW","Centrale hydraulique 44L, 20cc, 3 kW"]
["PP4G4HF",null,null,null,"PowerPack 44L, 20cc, 4 kW","","","BOMDET","PowerPack 44L, 20cc, 4 kW","PowerPack 44L, 20cc, 4 kW","Hydraulik Aggregat 44L, 20cc, 4 kW","Centrale hydraulique 44L, 20cc, 4 kW"]
["PP4G5HF",null,null,null,"PowerPack 44L, 20cc, 5,5 kW","","","BOMDET","PowerPack 44L, 20cc, 5,5 kW","PowerPack 44L, 20cc, 5,5 kW","Hydraulik Aggregat 44L, 20cc, 5,5 kW","Centrale hydraulique 44L, 20cc, 5,5 kW"]
["PP4G7HF",null,null,null,"PowerPack 44L, 20cc, 7,5 kW","","","BOMDET","PowerPack 44L, 20cc, 7,5 kW","PowerPack 44L, 20cc, 7,5 kW","Hydraulik Aggregat 44L, 20cc, 7,5 kW","Centrale hydraulique 44L, 20cc, 7,5 kW"]
["PP4H1HF",null,null,null,"PowerPack 44L, 26cc, 2,2 kW","","","BOMDET","PowerPack 44L, 26cc, 2,2 kW","PowerPack 44L, 26cc, 2,2 kW","Hydraulik Aggregat 44L, 26cc, 2,2 kW","Centrale hydraulique 44L, 26cc, 2,2 kW"]
["PP4H2HF",null,null,null,"PowerPack 44L, 26cc, 2,2 kW","","","BOMDET","PowerPack 44L, 26cc, 2,2 kW","PowerPack 44L, 26cc, 2,2 kW","Hydraulik Aggregat 44L, 26cc, 2,2 kW","Centrale hydraulique 44L, 26cc, 2,2 kW"]
["PP4H3HF",null,null,null,"PowerPack 44L, 26cc, 3 kW","","","BOMDET","PowerPack 44L, 26cc, 3 kW","PowerPack 44L, 26cc, 3 kW","Hydraulik Aggregat 44L, 26cc, 3 kW","Centrale hydraulique 44L, 26cc, 3 kW"]
["PP4H4HF",null,null,null,"PowerPack 44L, 26cc, 4 kW","","","BOMDET","PowerPack 44L, 26cc, 4 kW","PowerPack 44L, 26cc, 4 kW","Hydraulik Aggregat 44L, 26cc, 4 kW","Centrale hydraulique 44L, 26cc, 4 kW"]
["PP4H5HF",null,null,null,"PowerPack 44L, 26cc, 5,5 kW","","","BOMDET","PowerPack 44L, 26cc, 5,5 kW","PowerPack 44L, 26cc, 5,5 kW","Hydraulik Aggregat 44L, 26cc, 5,5 kW","Centrale hydraulique 44L, 26cc, 5,5 kW"]
["PP4H7HF",null,null,null,"PowerPack 44L, 26cc, 7,5 kW","","","BOMDET","PowerPack 44L, 26cc, 7,5 kW","PowerPack 44L, 26cc, 7,5 kW","Hydraulik Aggregat 44L, 26cc, 7,5 kW","Centrale hydraulique 44L, 26cc, 7,5 kW"]
["PP7A1HF",null,null,null,"PowerPack 70L, 4cc, 2.2 kW","","","BOMDET","PowerPack 70L, 4cc, 2.2 kW","PowerPack 70L, 4cc, 2.2 kW","Hydraulik Aggregat 70L, 4cc, 2.2 kW","Centrale hydraulique 70L, 4cc, 2.2 kW"]
["PP7A2HF",null,null,null,"PowerPack 70L, 4cc, 2.2 kW","","","BOMDET","PowerPack 70L, 4cc, 2.2 kW","PowerPack 70L, 4cc, 2.2 kW","Hydraulik Aggregat 70L, 4cc, 2.2 kW","Centrale hydraulique 70L, 4cc, 2.2 kW"]
["PP7A3HF",null,null,null,"PowerPack 70L, 4cc, 3 kW","","","BOMDET","PowerPack 70L, 4cc, 3 kW","PowerPack 70L, 4cc, 3 kW","Hydraulik Aggregat 70L, 4cc, 3 kW","Centrale hydraulique 70L, 4cc, 3 kW"]
["PP7A4HF",null,null,null,"PowerPack 70L, 4cc, 4 kW","","","BOMDET","PowerPack 70L, 4cc, 4 kW","PowerPack 70L, 4cc, 4 kW","Hydraulik Aggregat 70L, 4cc, 4 kW","Centrale hydraulique 70L, 4cc, 4 kW"]
["PP7B1HF",null,null,null,"PowerPack 70L, 6cc, 2,2 kW","","","BOMDET","PowerPack 70L, 6cc, 2,2 kW","PowerPack 70L, 6cc, 2,2 kW","Hydraulik Aggregat 70L, 6cc, 2,2 kW","Centrale hydraulique 70L, 6cc, 2,2 kW"]
["PP7B2HF",null,null,null,"PowerPack 70L, 6cc, 2,2 kW","","","BOMDET","PowerPack 70L, 6cc, 2,2 kW","PowerPack 70L, 6cc, 2,2 kW","Hydraulik Aggregat 70L, 6cc, 2,2 kW","Centrale hydraulique 70L, 6cc, 2,2 kW"]
["PP7B3HF",null,null,null,"PowerPack 70L, 6cc, 3 kW","","","BOMDET","PowerPack 70L, 6cc, 3 kW","PowerPack 70L, 6cc, 3 kW","Hydraulik Aggregat 70L, 6cc, 3 kW","Centrale hydraulique 70L, 6cc, 3 kW"]
["PP7B4HF",null,null,null,"PowerPack 70L, 6cc, 4 kW","","","BOMDET","PowerPack 70L, 6cc, 4 kW","PowerPack 70L, 6cc, 4 kW","Hydraulik Aggregat 70L, 6cc, 4 kW","Centrale hydraulique 70L, 6cc, 4 kW"]
["PP7B5HF",null,null,null,"PowerPack 70L, 6cc, 5,5 kW","","","BOMDET","PowerPack 70L, 6cc, 5,5 kW","PowerPack 70L, 6cc, 5,5 kW","Hydraulik Aggregat 70L, 6cc, 5,5 kW","Centrale hydraulique 70L, 6cc, 5,5 kW"]
["PP7C1HF",null,null,null,{"$f":"CHOOSE(SEL_LANGUAGE,I223,J223,K223,L223)","v":"PowerPack 70L, 8cc, 2,2 kW"},"","","BOMDET","PowerPack 70L, 8cc, 2,2 kW","PowerPack 70L, 8cc, 2,2 kW","Hydraulik Aggregat 70L, 8cc, 2,2 kW","Centrale hydraulique 70L, 8cc, 2,2 kW"]
["PP7C2HF",null,null,null,"PowerPack 70L, 8cc, 2.2 kW","","","BOMDET","PowerPack 70L, 8cc, 2.2 kW","PowerPack 70L, 8cc, 2.2 kW","Hydraulik Aggregat 70L, 8cc, 2.2 kW","Centrale hydraulique 70L, 8cc, 2.2 kW"]
["PP7C3HF",null,null,null,"PowerPack 70L, 8cc, 3 kW","","","BOMDET","PowerPack 70L, 8cc, 3 kW","PowerPack 70L, 8cc, 3 kW","Hydraulik Aggregat 70L, 8cc, 3 kW","Centrale hydraulique 70L, 8cc, 3 kW"]
["PP7C4HF",null,null,null,"PowerPack 70L, 8cc, 4 kW","","","BOMDET","PowerPack 70L, 8cc, 4 kW","PowerPack 70L, 8cc, 4 kW","Hydraulik Aggregat 70L, 8cc, 4 kW","Centrale hydraulique 70L, 8cc, 4 kW"]
["PP7C5HF",null,null,null,"PowerPack 70L, 8cc, 5,5 kW","","","BOMDET","PowerPack 70L, 8cc, 5,5 kW","PowerPack 70L, 8cc, 5,5 kW","Hydraulik Aggregat 70L, 8cc, 5,5 kW","Centrale hydraulique 70L, 8cc, 5,5 kW"]
["PP7D1HF",null,null,null,"PowerPack 70L, 11cc, 2.2 kW","","","BOMDET","PowerPack 70L, 11cc, 2.2 kW","PowerPack 70L, 11cc, 2.2 kW","Hydraulik Aggregat 70L, 11cc, 2.2 kW","Centrale hydraulique 70L, 11cc, 2.2 kW"]
["PP7D2HF",null,null,null,"PowerPack 70L, 11cc, 2.2 kW","","","BOMDET","PowerPack 70L, 11cc, 2.2 kW","PowerPack 70L, 11cc, 2.2 kW","Hydraulik Aggregat 70L, 11cc, 2.2 kW","Centrale hydraulique 70L, 11cc, 2.2 kW"]
["PP7D3HF",null,null,null,"PowerPack 70L, 11cc, 3 kW","","","BOMDET","PowerPack 70L, 11cc, 3 kW","PowerPack 70L, 11cc, 3 kW","Hydraulik Aggregat 70L, 11cc, 3 kW","Centrale hydraulique 70L, 11cc, 3 kW"]
["PP7D4HF",null,null,null,"PowerPack 70L, 11cc, 4 kW","","","BOMDET","PowerPack 70L, 11cc, 4 kW","PowerPack 70L, 11cc, 4 kW","Hydraulik Aggregat 70L, 11cc, 4 kW","Centrale hydraulique 70L, 11cc, 4 kW"]
["PP7D5HF",null,null,null,"PowerPack 70L, 11cc, 5.5 kW","","","BOMDET","PowerPack 70L, 11cc, 5.5 kW","PowerPack 70L, 11cc, 5.5 kW","Hydraulik Aggregat 70L, 11cc, 5.5 kW","Centrale hydraulique 70L, 11cc, 5.5 kW"]
["PP7D7HF",null,null,null,"PowerPack 70L, 11cc, 7.5 kW","","","BOMDET","PowerPack 70L, 11cc, 7.5 kW","PowerPack 70L, 11cc, 7.5 kW","Hydraulik Aggregat 70L, 11cc, 7.5 kW","Centrale hydraulique 70L, 11cc, 7.5 kW"]
["PP7E1HF",null,null,null,"PowerPack 70L, 14cc, 2.2 kW","","","BOMDET","PowerPack 70L, 14cc, 2.2 kW","PowerPack 70L, 14cc, 2.2 kW","Hydraulik Aggregat 70L, 14cc, 2.2 kW","Centrale hydraulique 70L, 14cc, 2.2 kW"]
["PP7E2HF",null,null,null,"PowerPack 70L, 14cc, 2.2 kW","","","BOMDET","PowerPack 70L, 14cc, 2.2 kW","PowerPack 70L, 14cc, 2.2 kW","Hydraulik Aggregat 70L, 14cc, 2.2 kW","Centrale hydraulique 70L, 14cc, 2.2 kW"]
["PP7E3HF",null,null,null,"PowerPack 70L, 14cc, 3 kW","","","BOMDET","PowerPack 70L, 14cc, 3 kW","PowerPack 70L, 14cc, 3 kW","Hydraulik Aggregat 70L, 14cc, 3 kW","Centrale hydraulique 70L, 14cc, 3 kW"]
["PP7E4HF",null,null,null,"PowerPack 70L, 14cc, 4 kW","","","BOMDET","PowerPack 70L, 14cc, 4 kW","PowerPack 70L, 14cc, 4 kW","Hydraulik Aggregat 70L, 14cc, 4 kW","Centrale hydraulique 70L, 14cc, 4 kW"]
["PP7E5HF",null,null,null,"PowerPack 70L, 14cc, 5.5 kW","","","BOMDET","PowerPack 70L, 14cc, 5.5 kW","PowerPack 70L, 14cc, 5.5 kW","Hydraulik Aggregat 70L, 14cc, 5.5 kW","Centrale hydraulique 70L, 14cc, 5.5 kW"]
["PP7E7HF",null,null,null,"PowerPack 70L, 14cc, 7.5 kW","","","BOMDET","PowerPack 70L, 14cc, 7.5 kW","PowerPack 70L, 14cc, 7.5 kW","Hydraulik Aggregat 70L, 14cc, 7.5 kW","Centrale hydraulique 70L, 14cc, 7.5 kW"]
["PP7F1HF",null,null,null,"PowerPack 70L, 16cc, 2.2 kW","","","BOMDET","PowerPack 70L, 16cc, 2.2 kW","PowerPack 70L, 16cc, 2.2 kW","Hydraulik Aggregat 70L, 16cc, 2.2 kW","Centrale hydraulique 70L, 16cc, 2.2 kW"]
["PP7F2HF",null,null,null,"PowerPack 70L, 16cc, 2.2 kW","","","BOMDET","PowerPack 70L, 16cc, 2.2 kW","PowerPack 70L, 16cc, 2.2 kW","Hydraulik Aggregat 70L, 16cc, 2.2 kW","Centrale hydraulique 70L, 16cc, 2.2 kW"]
["PP7F3HF",null,null,null,"PowerPack 70L, 16cc, 3 kW","","","BOMDET","PowerPack 70L, 16cc, 3 kW","PowerPack 70L, 16cc, 3 kW","Hydraulik Aggregat 70L, 16cc, 3 kW","Centrale hydraulique 70L, 16cc, 3 kW"]
["PP7F4HF",null,null,null,"PowerPack 70L, 16cc, 4 kW","","","BOMDET","PowerPack 70L, 16cc, 4 kW","PowerPack 70L, 16cc, 4 kW","Hydraulik Aggregat 70L, 16cc, 4 kW","Centrale hydraulique 70L, 16cc, 4 kW"]
["PP7F5HF",null,null,null,"PowerPack 70L, 16cc, 5.5 kW","","","BOMDET","PowerPack 70L, 16cc, 5.5 kW","PowerPack 70L, 16cc, 5.5 kW","Hydraulik Aggregat 70L, 16cc, 5.5 kW","Centrale hydraulique 70L, 16cc, 5.5 kW"]
["PP7F7HF",null,null,null,"PowerPack 70L, 16cc, 7.5 kW","","","BOMDET","PowerPack 70L, 16cc, 7.5 kW","PowerPack 70L, 16cc, 7.5 kW","Hydraulik Aggregat 70L, 16cc, 7.5 kW","Centrale hydraulique 70L, 16cc, 7.5 kW"]
["PP7G1HF",null,null,null,"PowerPack 70L, 20cc, 2.2 kW","","","BOMDET","PowerPack 70L, 20cc, 2.2 kW","PowerPack 70L, 20cc, 2.2 kW","Hydraulik Aggregat 70L, 20cc, 2.2 kW","Centrale hydraulique 70L, 20cc, 2.2 kW"]
["PP7G2HF",null,null,null,"PowerPack 70L, 20cc, 2.2 kW","","","BOMDET","PowerPack 70L, 20cc, 2.2 kW","PowerPack 70L, 20cc, 2.2 kW","Hydraulik Aggregat 70L, 20cc, 2.2 kW","Centrale hydraulique 70L, 20cc, 2.2 kW"]
["PP7G3HF",null,null,null,"PowerPack 70L, 20cc, 3 kW","","","BOMDET","PowerPack 70L, 20cc, 3 kW","PowerPack 70L, 20cc, 3 kW","Hydraulik Aggregat 70L, 20cc, 3 kW","Centrale hydraulique 70L, 20cc, 3 kW"]
["PP7G4HF",null,null,null,"PowerPack 70L, 20cc, 4 kW","","","BOMDET","PowerPack 70L, 20cc, 4 kW","PowerPack 70L, 20cc, 4 kW","Hydraulik Aggregat 70L, 20cc, 4 kW","Centrale hydraulique 70L, 20cc, 4 kW"]
["PP7G5HF",null,null,null,"PowerPack 70L, 20cc, 5,5 kW","","","BOMDET","PowerPack 70L, 20cc, 5,5 kW","PowerPack 70L, 20cc, 5,5 kW","Hydraulik Aggregat 70L, 20cc, 5,5 kW","Centrale hydraulique 70L, 20cc, 5,5 kW"]
["PP7G7HF",null,null,null,"PowerPack 70L, 20cc, 7,5 kW","","","BOMDET","PowerPack 70L, 20cc, 7,5 kW","PowerPack 70L, 20cc, 7,5 kW","Hydraulik Aggregat 70L, 20cc, 7,5 kW","Centrale hydraulique 70L, 20cc, 7,5 kW"]
["PP7H1HF",null,null,null,"PowerPack 70L, 26cc, 2.2 kW","","","BOMDET","PowerPack 70L, 26cc, 2.2 kW","PowerPack 70L, 26cc, 2.2 kW","Hydraulik Aggregat 70L, 26cc, 2.2 kW","Centrale hydraulique 70L, 26cc, 2.2 kW"]
["PP7H2HF",null,null,null,"PowerPack 70L, 26cc, 2.2 kW","","","BOMDET","PowerPack 70L, 26cc, 2.2 kW","PowerPack 70L, 26cc, 2.2 kW","Hydraulik Aggregat 70L, 26cc, 2.2 kW","Centrale hydraulique 70L, 26cc, 2.2 kW"]
["PP7H3HF",null,null,null,"PowerPack 70L, 26cc, 3 kW","","","BOMDET","PowerPack 70L, 26cc, 3 kW","PowerPack 70L, 26cc, 3 kW","Hydraulik Aggregat 70L, 26cc, 3 kW","Centrale hydraulique 70L, 26cc, 3 kW"]
["PP7H4HF",null,null,null,"PowerPack 70L, 26cc, 4 kW","","","BOMDET","PowerPack 70L, 26cc, 4 kW","PowerPack 70L, 26cc, 4 kW","Hydraulik Aggregat 70L, 26cc, 4 kW","Centrale hydraulique 70L, 26cc, 4 kW"]
["PP7H5HF",null,null,null,"PowerPack 70L, 26cc, 5,5 kW","","","BOMDET","PowerPack 70L, 26cc, 5,5 kW","PowerPack 70L, 26cc, 5,5 kW","Hydraulik Aggregat 70L, 26cc, 5,5 kW","Centrale hydraulique 70L, 26cc, 5,5 kW"]
["PP7H7HF",null,null,null,"PowerPack 70L, 26cc, 7,5 kW","","","BOMDET","PowerPack 70L, 26cc, 7,5 kW","PowerPack 70L, 26cc, 7,5 kW","Hydraulik Aggregat 70L, 26cc, 7,5 kW","Centrale hydraulique 70L, 26cc, 7,5 kW"]
["SMSC03A012C","SMSC03A",40,null,"Elek. terugslagklep MSC-03A-12 NG6","","","BOMDET","Elek. terugslagklep MSC-03A-12 NG6","Solenoid Check-Valve","Rückschlagventil elektr. NG6","Clapet anti-retour électr. MSC-03A-12 NG6"]
["SMSC03A024C","SMSC03A",40,null,"Elek. terugslagklep MSC-03A-24 NG6","","","BOMDET","Elek. terugslagklep MSC-03A-24 NG6","Solenoid Check-Valve","Rückschlagventil elektr. NG6","Clapet anti-retour électr. MSC-03A-24 NG6"]
["SMSC03A230A","SMSC03A",40,null,"Elek. terugslagklep MSC-03A-230 NG6","","","BOMDET","Elek. terugslagklep MSC-03A-230 NG6","Solenoid Check-Valve","Rückschlagventil elektr. NG6","Clapet anti-retour électr. MSC-03A-230 NG6"]
["SMSC03B012C","SMSC03B",40,null,"Elek. terugslagklep MSC-03B-12 NG6","","","BOMDET","Elek. terugslagklep MSC-03B-12 NG6","Solenoid Check-Valve","Rückschlagventil elektr. NG6","Clapet anti-retour électr. MSC-03B-12 NG6"]
["SMSC03B024C","SMSC03B",40,null,"Elek. terugslagklep MSC-03B-24 NG6","","","BOMDET","Elek. terugslagklep MSC-03B-24 NG6","Solenoid Check-Valve","Rückschlagventil elektr. NG6","Clapet anti-retour électr. MSC-03B-24 NG6"]
["SMSC03B230A","SMSC03B",40,null,"Elek. terugslagklep MSC-03B-230 NG6","","","BOMDET","Elek. terugslagklep MSC-03B-230 NG6","Solenoid Check-Valve","Rückschlagventil elektr. NG6","Clapet anti-retour électr. MSC-03B-230 NG6"]
["SMSC03W012C","SMSC03W",40,null,"Elek. terugslagklep MSC-03W-12      NG6","","","BOMDET","Elek. terugslagklep MSC-03W-12      NG6","Solenoid Check-Valve","Rückschlagventil elektr. NG6","Clapet anti-retour électr. MSC-03W-12      NG6"]
["SMSC03W024C","SMSC03W",40,null,"Elek. terugslagklep MSC-03W-24     NG6","","","BOMDET","Elek. terugslagklep MSC-03W-24     NG6","Solenoid Check-Valve","Rückschlagventil elektr. NG6","Clapet anti-retour électr. MSC-03W-24     NG6"]
["SMSC03W230A","SMSC03W",40,null,"Elek. terugslagklep MSC-03W-230      NG6","","","BOMDET","Elek. terugslagklep MSC-03W-230      NG6","Solenoid Check-Valve","Rückschlagventil elektr. NG6","Clapet anti-retour électr. MSC-03W-230      NG6"]

{"sheet":"Tables","index":4,"n_rows":105,"n_cols":11,"rows_kept":105,"cut":false,"hidden":true,"merged":[]}
["LST_TANK & DBS_TANK","Ltr.","Peilglas(1)","Peilglas(2)","Peilglas(3)",null,"Code","Oms_DUT","Oms_ENG","Oms_GER","Oms_FRE"]
[{"$f":"G2&\" : \"&CHOOSE(SEL_LANGUAGE,H2,I2,J2,K2)","v":"3 : 30 liter aluminium tank"},30,"LVA1SA","LVA1TA","LVK10AM121T7",null,3,"30 liter aluminium tank","30 litre alumium tank","30 Liter Aluminium Ölbehalter","Réservoir en Aluminium 30 litres"]
[{"$f":"G3&\" : \"&CHOOSE(SEL_LANGUAGE,H3,I3,J3,K3)","v":"4 : 44 liter aluminium tank"},44,"LVA1SA","LVA1TA","LVK10AM121T7",null,"4","44 liter aluminium tank","44 litre alumium tank","44 Liter Aluminium Ölbehalter","Réservoir en Aluminium 44 litres"]
[{"$f":"G4&\" : \"&CHOOSE(SEL_LANGUAGE,H4,I4,J4,K4)","v":"7 : 70 liter aluminium tank"},70,"LVA2SA","LVA2TA","LVK20AM121T7",null,"7","70 liter aluminium tank","70 litre alumium tank","70 Liter Aluminium Ölbehalter","Réservoir en Aluminium 70 litres"]
[null,null,null,null,null,null,""]
["LST_PUMP & DBS_PUMP","CC","Koppeling","Plug",null,null,"Code","Oms_DUT","Oms_ENG","Oms_GER","Oms_FRE"]
[{"$f":"G7&\" : \"&CHOOSE(SEL_LANGUAGE,H7,I7,J7,K7)","v":"P : 1,0  cc pompgroep 1"},1,"GEV12LR38","VS12LS",null,null,"P","1,0  cc pompgroep 1","1,0  cc pumpgroup 1","1,0  cc Pumpgruppe 1","1,0  cc pompe groupe 1"]
["Q : 2,0  cc pompgroep 1",2,"GEV12LR38","VS12LS",null,null,"Q","2,0  cc pompgroep 1","2,0  cc pumpgroup 1","2,0  cc Pumpgruppe 1","2,0  cc pompe groupe 1"]
["R : 3,1  cc pompgroep 1",3.1,"GEV12LR38","VS12LS",null,null,"R","3,1  cc pompgroep 1","3,1  cc pumpgroup 1","3,1  cc Pumpgruppe 1","3,1  cc pompe groupe 1"]
["S : 4,0  cc pompgroep 1",4,"GEV12LR38","VS12LS",null,null,"S","4,0  cc pompgroep 1","4,0  cc pumpgroup 1","4,0  cc Pumpgruppe 1","4,0  cc pompe groupe 1"]
["A : 4,8  cc pompgroep 2",4.8,"GEV12LR38","VS12LS",null,null,"A","4,8  cc pompgroep 2","4,8  cc pumpgroup 2","4,8  cc Pumpgruppe 2","4,8  cc pompe groupe 2"]
["B : 6,5  cc pompgroep 2",6.5,"GEV12LR38","VS12LS",null,null,"B","6,5  cc pompgroep 2","6,5  cc pumpgroup 2","6,5  cc Pumpgruppe 2","6,5  cc pompe groupe 2"]
["C : 8,3  cc pompgroep 2",8.3000000000000007,"GEV12LR38","VS12LS",null,null,"C","8,3  cc pompgroep 2","8,3  cc pumpgroup 2","8,3  cc Pumpgruppe 2","8,3  cc pompe groupe 2"]
["D : 11,1 cc pompgroep 2",11.1,"GEV12LR38","VS12LS",null,null,"D","11,1 cc pompgroep 2","11,1 cc pumpgroup 2","11,1 cc Pumpgruppe 2","11,1 cc pompe groupe 2"]
["E : 14,4 cc pompgroep 2",14.4,"GEV15LR38","VS15L",null,null,"E","14,4 cc pompgroep 2","14,4 cc pumpgroup 2","14,4 cc Pumpgruppe 2","14,4 cc pompe groupe 2"]
["F : 16,6 cc pompgroep 2",16.600000000000001,"GEV15LR38","VS15L",null,null,"F","16,6 cc pompgroep 2","16,6 cc pumpgroup 2","16,6 cc Pumpgruppe 2","16,6 cc pompe groupe 2"]
["G : 20,8 cc pompgroep 2",20.8,"GEV15LR38","VS15L",null,null,"G","20,8 cc pompgroep 2","20,8 cc pumpgroup 2","20,8 cc Pumpgruppe 2","20,8 cc pompe groupe 2"]
["H : 26,0 cc pompgroep 2",26,"GEV15LR38","VS15L",null,null,"H","26,0 cc pompgroep 2","26,0 cc pumpgroup 2","26,0 cc Pumpgruppe 2","26,0 cc pompe groupe 2"]
[null,null,null,null,null,null,""]
["LST_MOTOR & DBS_MOTOR","kW","Omw./Min",null,null,null,"Code","Oms_DUT","Oms_ENG","Oms_GER","Oms_FRE"]
[{"$f":"G21&\" : \"&CHOOSE(SEL_LANGUAGE,H21,I21,J21,K21)","v":"1 : 2,2 kW 1395 omw/min B5 230V"},2.2000000000000002,1395,null,null,null,"1","2,2 kW 1395 omw/min B5 230V","2,2 kW 1395 rev./min B5 230V","2,2 kW 1395 umdr./min B5 230V","2,2 kW 1395 tr/min B5 230V"]
["2 : 2,2 kW 1395 omw/min B5 400V",2.2000000000000002,1395,null,null,null,"2","2,2 kW 1395 omw/min B5 400V","2,2 kW 1395 rev./min B5 400V","2,2 kW 1395 umdr./min B5 400V","2,2 kW 1395 tr/min B5 400V"]
["3 : 3,0 kW 1410 omw/min B5 400V",3,1410,null,null,null,"3","3,0 kW 1410 omw/min B5 400V","3,0 kW 1410 rev./min B5 400V","3,0 kW 1410 umdr./min B5 400V","3,0 kW 1410 tr/min B5 400V"]
["4 : 4,0 kW 1410 omw/min B5 400V",4,1410,null,null,null,"4","4,0 kW 1410 omw/min B5 400V","4,0 kW 1410 rev./min B5 400V","4,0 kW 1410 umdr./min B5 400V","4,0 kW 1410 tr/min B5 400V"]
["5 : 5,5 kW 1435 omw/min B5 400V",5.5,1435,null,null,null,"5","5,5 kW 1435 omw/min B5 400V","5,5 kW 1435 rev./min B5 400V","5,5 kW 1435 umdr./min B5 400V","5,5 kW 1435 tr/min B5 400V"]
["7 : 7,5 kW 1410 omw/min B5 400V",7.5,1410,null,null,null,"7","7,5 kW 1410 omw/min B5 400V","7,5 kW 1410 rev./min B5 400V","7,5 kW 1410 umdr./min B5 400V","7,5 kW 1410 tr/min B5 400V"]
[null,null,null,null,null,null,""]
["LST_RELIEF_VALVE & DBS_RELIEF_VALVE","Artikel",null,null,null,null,"Code","Oms_DUT","Oms_ENG","Oms_GER","Oms_FRE"]
[{"$f":"G29&\" : \"&CHOOSE(SEL_LANGUAGE,H29,I29,J29,K29)","v":"A : Geen"},"CP93102B0",null,null,null,null,"A","Geen","None","Keine","Sans"]
[{"$f":"G30&\" : \"&CHOOSE(SEL_LANGUAGE,H30,I30,J30,K30)","v":"B : Drukbereik 20-130 bar - lagedruk"},"MO410",null,null,null,null,"B","Drukbereik 20-130 bar - lagedruk","Pressure range 20-130 bar - low pressure","Druckbereich 20-130 bar - Niederdruck","Plage de pression 20-130 bar - bas pression"]
[{"$f":"G31&\" : \"&CHOOSE(SEL_LANGUAGE,H31,I31,J31,K31)","v":"C : Drukbereik 50-250 bar - standaard"},"MO432",null,null,null,null,"C","Drukbereik 50-250 bar - standaard","Pressure range 50-250 bar - standard","Druckbereich 50-250 bar - standard","Plage de pression 50-250 bar - standard"]
[null,null,null,null,null,null,""]
["LST_RONDPOMP & DBS_RONDPOMP",null,null,null,null,null,"Code","Oms_DUT","Oms_ENG","Oms_GER","Oms_FRE"]
[{"$f":"G34&\" : \"&CHOOSE(SEL_LANGUAGE,H34,I34,J34,K34)","v":"A : Geen"},null,null,null,null,null,"A","Geen","None","Keine","Sans"]
[{"$f":"G35&\" : \"&CHOOSE(SEL_LANGUAGE,H35,I35,J35,K35)","v":"B : 2-2 klep NO"},null,null,null,null,null,"B","2-2 klep NO","2-2 valve NO","2-2 Ventil NO","Vanne 2-2 NO"]
[{"$f":"G36&\" : \"&CHOOSE(SEL_LANGUAGE,H36,I36,J36,K36)","v":"C : 2-2 klep NC"},null,null,null,null,null,"C","2-2 klep NC","2-2 valve NC","2-2 Ventil NC","Vanne 2-2 NC"]
[null,null,null,null,null,null,""]
["LST_MOUNTING",null,null,null,null,null,"Code","Oms_DUT","Oms_ENG","Oms_GER","Oms_FRE"]
[{"$f":"G39&\" : \"&CHOOSE(SEL_LANGUAGE,H39,I39,J39,K39)","v":"0 : Zonder Cetop 03 voetplaat"},null,null,null,null,null,"0","Zonder Cetop 03 voetplaat","Without Cetop 03 Subplate","Ohne Cetop 03 Fussplatte","Sans embase Cetop 03"]
["MC : Maxi-compact",null,null,null,null,null,"MC","Maxi-compact","Maxi-compact","Maxi-compact","Compact - maxi"]
["1 : 1-ledige voetplaat NG06",null,null,null,null,null,"1","1-ledige voetplaat NG06","Subplate 1 funtion NG06","Fussplatte 1 Funktion NG06","embase 1 élément NG06"]
["2 : 2-ledige voetplaat MR3-2-GZ",null,null,null,null,null,"2","2-ledige voetplaat MR3-2-GZ","Subplate 2 funtions MR3-2-GZ","Fussplatte 2 Funktionen MR3-2-GZ","Embase 2 élement MR3-2-GZ"]
["3 : 3-ledige voetplaat MR3-3-GZ",null,null,null,null,null,"3","3-ledige voetplaat MR3-3-GZ","Subplate 3 funtions MR3-3-GZ","Fussplatte 3 Funktionen MR3-3-GZ","Embase 3 élément MR3-3-GZ"]
["4 : 4-ledige voetplaat MR3-4-GZ",null,null,null,null,null,"4","4-ledige voetplaat MR3-4-GZ","Subplate 4 funtions MR3-4-GZ","Fussplatte 4 Funktionen MR3-4-GZ","Embase 4 élément MR3-4-GZ"]
["5 : 5-ledige voetplaat MR3-5-GZ",null,null,null,null,null,"5","5-ledige voetplaat MR3-5-GZ","Subplate 5 funtions MR3-5-GZ","Fussplatte 5 Funktionen MR3-5-GZ","Embase 5 élément MR3-5-GZ"]
["6 : 6-ledige voetplaat MR3-6-GZ",null,null,null,null,null,"6","6-ledige voetplaat MR3-6-GZ","Subplate 6 funtions MR3-6-GZ","Fussplatte 6 Funktionen MR3-6-GZ","Embase 6 élément MR3-6-GZ"]
["7 : 7-ledige voetplaat MR3-7-GZ",null,null,null,null,null,"7","7-ledige voetplaat MR3-7-GZ","Subplate 7 funtions MR3-7-GZ","Fussplatte 7 Funktionen MR3-7-GZ","Embase 7 élément MR3-7-GZ"]
["8 : 8-ledige voetplaat MR3-8-GZ",null,null,null,null,null,"8","8-ledige voetplaat MR3-8-GZ","Subplate 8 funtions MR3-8-GZ","Fussplatte 8 Funktionen MR3-8-GZ","Embase 8 élément MR3-8-GZ"]
[]
["LST_VALVE","Artikel","Hoogte","-","Prefix",null,null,"Oms_DUT","Oms_ENG","Oms_GER","Oms_FRE"]
[]
[{"$f":"E52&\" - \"&CHOOSE(SEL_LANGUAGE,H52,I52,J52,K52)","v":"KREV03B2 - Elek. stuurschuif NG6"},{"$f":"E52&SEL_VOLTAGE","v":"KREV03B2012C"},45,null,"KREV03B2",null,null,"Elek. stuurschuif NG6","Elec. control valve NG6","Elektromagnetventil NG6","Distributeur éléctrique NG6"]
["KREV03B20 - Elek. stuurschuif NG6","KREV03B20012C",45,null,"KREV03B20",null,null,"Elek. stuurschuif NG6","Elec. control valve NG6","Elektromagnetventil NG6","Distributeur éléctrique NG6"]
["KREV03B3 - Elek. stuurschuif NG6","KREV03B3012C",45,null,"KREV03B3",null,null,"Elek. stuurschuif NG6","Elec. control valve NG6","Elektromagnetventil NG6","Distributeur éléctrique NG6"]
["KREV03B3S - Elek. stuurschuif NG6","KREV03B3S012C",45,null,"KREV03B3S",null,null,"Elek. stuurschuif NG6","Elec. control valve NG6","Elektromagnetventil NG6","Distributeur éléctrique NG6"]
["KREV03C2 - Elek. stuurschuif NG6","KREV03C2012C",45,null,"KREV03C2",null,null,"Elek. stuurschuif NG6","Elec. control valve NG6","Elektromagnetventil NG6","Distributeur éléctrique NG6"]
["KREV03C3 - Elek. stuurschuif NG6","KREV03C3012C",45,null,"KREV03C3",null,null,"Elek. stuurschuif NG6","Elec. control valve NG6","Elektromagnetventil NG6","Distributeur éléctrique NG6"]
["KREV03C3B - Elek. stuurschuif NG6","KREV03C3B012C",45,null,"KREV03C3B",null,null,"Elek. stuurschuif NG6","Elec. control valve NG6","Elektromagnetventil NG6","Distributeur éléctrique NG6"]
["KREV03C4 - Elek. stuurschuif NG6","KREV03C4012C",45,null,"KREV03C4",null,null,"Elek. stuurschuif NG6","Elec. control valve NG6","Elektromagnetventil NG6","Distributeur éléctrique NG6"]
["KREV03C6 - Elek. stuurschuif NG6","KREV03C6012C",45,null,"KREV03C6",null,null,"Elek. stuurschuif NG6","Elec. control valve NG6","Elektromagnetventil NG6","Distributeur éléctrique NG6"]
["KREV03D2 - Elek. stuurschuif NG6","KREV03D2012C",45,null,"KREV03D2",null,null,"Elek. stuurschuif NG6","Elec. control valve NG6","Elektromagnetventil NG6","Distributeur éléctrique NG6"]
["KREV903DEK - Afdekplaat NG6",{"$f":"E62","v":"KREV903DEK"},null,null,"KREV903DEK",null,null,"Afdekplaat NG6","Endplate NG6","Endplatte NG6","Plaque de fermeture"]
[]
["LST_VALVE_MOD & LST_VALVE_MOD_1","Artikel","Hoogte","Sel1","Prefix",null,null,"Oms_DUT","Oms_ENG","Oms_GER","Oms_FRE"]
[]
[{"$f":"E66&\" - \"&CHOOSE(SEL_LANGUAGE,H66,I66,J66,K66)","v":"KRMRF03A3 - Drukregelklep NG6"},"KRMRF03A3",40,null,"KRMRF03A3",null,null,"Drukregelklep NG6","Relief valve NG6","Druckbegrenzungsventil NG6","Valve de réglage de pression NG6"]
["KRMRF03B3 - Drukregelklep NG6","KRMRF03B3",40,null,"KRMRF03B3",null,null,"Drukregelklep NG6","Relief valve NG6","Druckbegrenzungsventil NG6","Valve de réglage de pression NG6"]
["KRMRF03C3 - Drukregelklep NG6","KRMRF03C3",40,null,"KRMRF03C3",null,null,"Drukregelklep NG6","Relief valve NG6","Druckbegrenzungsventil NG6","Valve de réglage de pression NG6"]
["KRMRF03D3 - Drukregelklep NG6","KRMRF03D3",40,null,"KRMRF03D3",null,null,"Drukregelklep NG6","Relief valve NG6","Druckbegrenzungsventil NG6","Valve de réglage de pression NG6"]
["KRMSC03A - Elek. Terugslagklep NG6",{"$f":"E70&SEL_VOLTAGE","v":"KRMSC03A012C"},40,null,"KRMSC03A",null,null,"Elek. Terugslagklep NG6","Elec. non return valve NG6","Elek. entsp Rückschlagventil NG6","Clapet anti-retour électrique NG6"]
["KRMSC03B - Elek. Terugslagklep NG6",{"$f":"E71&SEL_VOLTAGE","v":"KRMSC03B012C"},40,null,"KRMSC03B",null,null,"Elek. Terugslagklep NG6","Elec. non return valve NG6","Elek. entsp Rückschlagventil NG6","Clapet anti-retour électrique NG6"]
["KRMSC03W - Elek. Terugslagklep NG6",{"$f":"E72&SEL_VOLTAGE","v":"KRMSC03W012C"},40,null,"KRMSC03W",null,null,"Elek. Terugslagklep NG6","Elec. non return valve NG6","Elek. entsp Rückschlagventil NG6","Clapet anti-retour électrique NG6"]
["KRMPC03A - Gest. Terugslagklep NG6","KRMPC03A",40,null,"KRMPC03A",null,null,"Gest. Terugslagklep NG6","PO non return valve NG6","Entsp. Rückschlagventil NG6","Clapet anti-retour piloté NG6"]
["KRMPC03B - Gest. Terugslagklep NG6","KRMPC03B",40,null,"KRMPC03B",null,null,"Gest. Terugslagklep NG6","PO non return valve NG6","Entsp. Rückschlagventil NG6","Clapet anti-retour piloté NG6"]
["KRMPC03W - Gest. Terugslagklep NG6","KRMPC03W",40,null,"KRMPC03W",null,null,"Gest. Terugslagklep NG6","PO non return valve NG6","Entsp. Rückschlagventil NG6","Clapet anti-retour piloté NG6"]
["KRMTI03A - Smoorterugslagklep NG6","KRMTI03A",40,null,"KRMTI03A",null,null,"Smoorterugslagklep NG6","Throttling valve NG6","Drosselrückschlagventil NG6","Etrangleur de débit unidirectionnel NG6"]
["KRMTI03B - Smoorterugslagklep NG6","KRMTI03B",40,null,"KRMTI03B",null,null,"Smoorterugslagklep NG6","Throttling valve NG6","Drosselrückschlagventil NG6","Etrangleur de débit unidirectionnel NG6"]
["KRMTI03W - Smoorterugslagklep NG6","KRMTI03W",40,null,"KRMTI03W",null,null,"Smoorterugslagklep NG6","Throttling valve NG6","Drosselrückschlagventil NG6","Etrangleur de débit unidirectionnel NG6"]
["KRMTO03A - Smoorterugslagklep NG6","KRMTO03A",40,null,"KRMTO03A",null,null,"Smoorterugslagklep NG6","Throttling valve NG6","Drosselrückschlagventil NG6","Etrangleur de débit unidirectionnel NG6"]
["KRMTO03B - Smoorterugslagklep NG6","KRMTO03B",40,null,"KRMTO03B",null,null,"Smoorterugslagklep NG6","Throttling valve NG6","Drosselrückschlagventil NG6","Etrangleur de débit unidirectionnel NG6"]
["KRMTO03W - Smoorterugslagklep NG6","KRMTO03W",40,null,"KRMTO03W",null,null,"Smoorterugslagklep NG6","Throttling valve NG6","Drosselrückschlagventil NG6","Etrangleur de débit unidirectionnel NG6"]
["KRMPR03A3 - Reduceerklep NG6","KRMPR03A3",40,null,"KRMPR03A3",null,null,"Reduceerklep NG6","Reducing valve NG6","Druckminderventil NG6","Réducteur de pression NG6"]
["KRMPR03B3 - Reduceerklep NG6","KRMPR03B3",40,null,"KRMPR03B3",null,null,"Reduceerklep NG6","Reducing valve NG6","Druckminderventil NG6","Réducteur de pression NG6"]
["KRMPS9030 - Tussenplaat ongeboord","KRMPS9030",40,null,"KRMPS9030",null,null,"Tussenplaat ongeboord","Intermediate Plate","Zwichenplatte","Plaque intermédiaire "]
["KRMPS903A - Tussenplaat","KRMPS903A",40,null,"KRMPS903A",null,null,"Tussenplaat","Intermediate Plate","Zwichenplatte","Plaque intermédiaire "]
["KRMPS903B - Tussenplaat","KRMPS903B",40,null,"KRMPS903B",null,null,"Tussenplaat","Intermediate Plate","Zwichenplatte","Plaque intermédiaire "]
["CB10HVM03009 - Balanceerklep NG6","CB10HVM03009",50,null,"CB10HVM03009",null,null,"Balanceerklep NG6","Counterbalancevalve NG6","Gegenhalteventil NG6","Valve d'équilibrage"]
["CB10HVM03017 - Balanceerklep NG6","CB10HVM03017",50,null,"CB10HVM03017",null,null,"Balanceerklep NG6","Counterbalancevalve NG6","Gegenhalteventil NG6","Valve d'équilibrage"]
["CP3002M03001 - Drukcomp. 2-weg","CP3002M03001",50,1,"CP3002M03001",null,null,"Drukcomp. 2-weg","Pressurecomp. 2-way","Druckkomp. 2-Wege","Vanne 2-voie pression compensé"]
["CP3102M03001 - Drukcomp. 3-weg","CP3102M03001",50,1,"CP3102M03001",null,null,"Drukcomp. 3-weg","Pressurecomp. 3-way","Druckkomp. 3-Wege","Vanne 3-voie pression compensé"]
["KRMPS903P - Tussenplaat","KRMPS903P",40,1,"KRMPS903P",null,null,"Tussenplaat","Intermediate Plate","Zwichenplatte","Plaque intermédiaire "]
["KRMPR03P3 - Reduceerklep NG6","KRMPR03P3",40,1,"KRMPR03P3",null,null,"Reduceerklep NG6","Reducing valve NG6","Druckminderventil NG6","Réducteur de pression NG6"]
["KRMRF03P3 - Drukregelklep NG6","KRMRF03P3",40,1,"KRMRF03P3",null,null,"Drukregelklep NG6","Relief valve NG6","Druckbegrenzungsventil NG6","Régulateur de pression"]
["KRMC03P05 - Terugslagklep","KRMC03P05",40,1,"KRMC03P05",null,null,"Terugslagklep","Check valve","Rückschlagventil","Clapet anti-retour"]
[]
["LST_GAUGE & DBS_GAUGE","ARTIKEL1","ARTIKEL2",null,null,null,null,"Oms_DUT","Oms_ENG","Oms_GER","Oms_FRE"]
[{"$f":"\"<\"&CHOOSE(SEL_LANGUAGE,H97,I97,J97,K97)&\">\"","v":"<Geen manometer>"},"-","-",null,null,null,null,"Geen manometer","No Pressure Gauge","Kein Manometer","Sans manomètre"]
[{"$f":"IF(SYS_CLC_MAX_WP>250,\"-\",CHOOSE(SEL_LANGUAGE,H98,I98,J98,K98))","v":"Manometer 250 bar met afsluiter"},"MA63250L04PLGF","EM18090",null,null,null,null,"Manometer 250 bar met afsluiter","Pressure Gauge 250 bar with shut-off valve","Manometer 250 bar mit Absperrhahn","Manomètre 250 bar avec robinet de fermeture"]
[{"$f":"IF(SYS_CLC_MAX_WP>160,\"-\",CHOOSE(SEL_LANGUAGE,H99,I99,J99,K99))","v":"-"},"MA63160L04PLGF","EM18090",null,null,null,null,"Manometer 160 bar met afsluiter","Pressure Gauge 160 bar with shut-off valve","Manometer 160 bar mit Absperrhahn","Manomètre 160 bar avec robinet de fermeture"]
[{"$f":"IF(SYS_CLC_MAX_WP>100,\"-\",CHOOSE(SEL_LANGUAGE,H100,I100,J100,K100))","v":"-"},"MA63100L04PLGF","EM18090",null,null,null,null,"Manometer 100 bar met afsluiter","Pressure Gauge 100 bar with shut-off valve","Manometer 100 bar mit Absperrhahn","Manomètre 100 bar avec robinet de fermeture"]
[]
["LST_VOLTAGE"]
["012C"]
["024C"]
["230A"]

{"sheet":"Opbouw","index":5,"n_rows":65,"n_cols":10,"rows_kept":65,"cut":false,"hidden":true,"merged":[]}
["Key","Rondpomp","Voltage","Voetplaat","Artikel1","Aantal","Artikel2","Aantal","Artikel3","Aantal"]
[{"$f":"B2&C2&D2","v":"A0"},"A",null,0,"-",null,"-",null,"-"]
["A1","A",null,1,"-",null,"-",null,"-"]
["A2","A",null,2,"CP93102B0",1,"-",null,"MR32GZ",1]
["A3","A",null,3,"CP93102B0",1,"-",null,"MR33GZ",1]
["A4","A",null,4,"CP93102B0",1,"-",null,"MR34GZ",1]
["A5","A",null,5,"CP93102B0",1,"-",null,"MR35GZ",1]
["A6","A",null,6,"CP93102B0",1,"-",null,"MR36GZ",1]
["A7","A",null,7,"CP93102B0",1,"-",null,"MR37GZ",1]
["A8","A",null,8,"CP93102B0",1,"-",null,"MR38GZ",1]
["AMC","A",null,"MC","-",null,"-",null,"-"]
["B012C0","B","012C",0,"SVP10NO00B00",1,"SD9M1612D26WDN",1,"-"]
["B012C1","B","012C",1,"SVP10NO00B00",1,"SD9M1612D26WDN",1,"MR31GZ"]
["B012C2","B","012C",2,"SVP10NO00B00",1,"SD9M1612D26WDN",1,"MR32GZ",1]
["B012C3","B","012C",3,"SVP10NO00B00",1,"SD9M1612D26WDN",1,"MR33GZ",1]
["B012C4","B","012C",4,"SVP10NO00B00",1,"SD9M1612D26WDN",1,"MR34GZ",1]
["B012C5","B","012C",5,"SVP10NO00B00",1,"SD9M1612D26WDN",1,"MR35GZ",1]
["B012C6","B","012C",6,"SVP10NO00B00",1,"SD9M1612D26WDN",1,"MR36GZ",1]
["B012C7","B","012C",7,"SVP10NO00B00",1,"SD9M1612D26WDN",1,"MR37GZ",1]
["B012C8","B","012C",8,"SVP10NO00B00",1,"SD9M1612D26WDN",1,"MR38GZ",1]
["B024C0","B","024C",0,"SVP10NO00B00",1,"SD9M1624D26WDN",1,"-"]
["B024C1","B","024C",1,"SVP10NO00B00",1,"SD9M1624D26WDN",1,"MR31GZ",1]
["B024C2","B","024C",2,"SVP10NO00B00",1,"SD9M1624D26WDN",1,"MR32GZ",1]
["B024C3","B","024C",3,"SVP10NO00B00",1,"SD9M1624D26WDN",1,"MR33GZ",1]
["B024C4","B","024C",4,"SVP10NO00B00",1,"SD9M1624D26WDN",1,"MR34GZ",1]
["B024C5","B","024C",5,"SVP10NO00B00",1,"SD9M1624D26WDN",1,"MR35GZ",1]
["B024C6","B","024C",6,"SVP10NO00B00",1,"SD9M1624D26WDN",1,"MR36GZ",1]
["B024C7","B","024C",7,"SVP10NO00B00",1,"SD9M1624D26WDN",1,"MR37GZ",1]
["B024C8","B","024C",8,"SVP10NO00B00",1,"SD9M1624D26WDN",1,"MR38GZ",1]
["B230A0","B","230A",0,"SVP10NO00B00",1,"CP950220",1,"-"]
["B230A1","B","230A",1,"SVP10NO00B00",1,"CP950220",1,"MR31GZ",1]
["B230A2","B","230A",2,"SVP10NO00B00",1,"CP950220",1,"MR32GZ",1]
["B230A3","B","230A",3,"SVP10NO00B00",1,"CP950220",1,"MR33GZ",1]
["B230A4","B","230A",4,"SVP10NO00B00",1,"CP950220",1,"MR34GZ",1]
["B230A5","B","230A",5,"SVP10NO00B00",1,"CP950220",1,"MR35GZ",1]
["B230A6","B","230A",6,"SVP10NO00B00",1,"CP950220",1,"MR36GZ",1]
["B230A7","B","230A",7,"SVP10NO00B00",1,"CP950220",1,"MR37GZ",1]
["B230A8","B","230A",8,"SVP10NO00B00",1,"CP950220",1,"MR38GZ",1]
["C012C0","C","012C",0,"SVP10NC00B00",1,"SD9M1612D26WDN",1,"-"]
["C012C1","C","012C",1,"SVP10NC00B00",1,"SD9M1612D26WDN",1,"MR31GZ",1]
["C012C2","C","012C",2,"SVP10NC00B00",1,"SD9M1612D26WDN",1,"MR32GZ",1]
["C012C3","C","012C",3,"SVP10NC00B00",1,"SD9M1612D26WDN",1,"MR33GZ",1]
["C012C4","C","012C",4,"SVP10NC00B00",1,"SD9M1612D26WDN",1,"MR34GZ",1]
["C012C5","C","012C",5,"SVP10NC00B00",1,"SD9M1612D26WDN",1,"MR35GZ",1]
["C012C6","C","012C",6,"SVP10NC00B00",1,"SD9M1612D26WDN",1,"MR36GZ",1]
["C012C7","C","012C",7,"SVP10NC00B00",1,"SD9M1612D26WDN",1,"MR37GZ",1]
["C012C8","C","012C",8,"SVP10NC00B00",1,"SD9M1612D26WDN",1,"MR38GZ",1]
["C024C0","C","024C",0,"SVP10NC00B00",1,"SD9M1624D26WDN",1,"-"]
["C024C1","C","024C",1,"SVP10NC00B00",1,"SD9M1624D26WDN",1,"MR31GZ",1]
["C024C2","C","024C",2,"SVP10NC00B00",1,"SD9M1624D26WDN",1,"MR32GZ",1]
["C024C3","C","024C",3,"SVP10NC00B00",1,"SD9M1624D26WDN",1,"MR33GZ",1]
["C024C4","C","024C",4,"SVP10NC00B00",1,"SD9M1624D26WDN",1,"MR34GZ",1]
["C024C5","C","024C",5,"SVP10NC00B00",1,"SD9M1624D26WDN",1,"MR35GZ",1]
["C024C6","C","024C",6,"SVP10NC00B00",1,"SD9M1624D26WDN",1,"MR36GZ",1]
["C024C7","C","024C",7,"SVP10NC00B00",1,"SD9M1624D26WDN",1,"MR37GZ",1]
["C024C8","C","024C",8,"SVP10NC00B00",1,"SD9M1624D26WDN",1,"MR38GZ",1]
["C230A0","C","230A",0,"SVP10NC00B00",1,"CP950220",1,"-"]
["C230A1","C","230A",1,"SVP10NC00B00",1,"CP950220",1,"MR31GZ",1]
["C230A2","C","230A",2,"SVP10NC00B00",1,"CP950220",1,"MR32GZ",1]
["C230A3","C","230A",3,"SVP10NC00B00",1,"CP950220",1,"MR33GZ",1]
["C230A4","C","230A",4,"SVP10NC00B00",1,"CP950220",1,"MR34GZ",1]
["C230A5","C","230A",5,"SVP10NC00B00",1,"CP950220",1,"MR35GZ",1]
["C230A6","C","230A",6,"SVP10NC00B00",1,"CP950220",1,"MR36GZ",1]
["C230A7","C","230A",7,"SVP10NC00B00",1,"CP950220",1,"MR37GZ",1]
["C230A8","C","230A",8,"SVP10NC00B00",1,"CP950220",1,"MR38GZ",1]

{"sheet":"MaxiCompact","index":6,"n_rows":11,"n_cols":8,"rows_kept":11,"cut":false,"hidden":true,"merged":[]}
["Omschrijving","Image","BOM.Artikel","Aantal","Opmerking","Optie.1","Optie.2","Optie.3"]
["Basis1: Maxicompactblok","-",{"$f":"F2","v":"CARTK043401"},1,"Vaste waarde","CARTK043401"]
["Basis2: Terugslagklep","-",{"$f":"F3","v":"CV10NP03B00"},1,"Vaste waarde","CV10NP03B00"]
["Basis3: Meetpuntkoppeling","-",{"$f":"F4","v":"MEV2014"},null,"Vaste waarde, Aantal berekend in BOM-werkblad","MEV2014"]
["Optie1: Rondpomp","MC12","SVP10NO00B00",1,null,"CP93102B0","SVP10NO00B00"]
["Optie2: Veiligheid","MC21","MO410",1,null,"MO410","MO432"]
["Optie3: Daalklep","MC31",{"$f":"F7","v":"SVP10NC00B00"},1,"Vaste waarde","SVP10NC00B00"]
["Optie4: Volumeregeling","MC41",{"$f":"F8","v":"PU10AAM0B"},1,"Vaste waarde","PU10AAM0B"]
["Optie5: Smoring","MC51","SSM6608",1,null,"SSM6608","SSM6610","SSM6612"]
["Optie6: Noodbediening","MC62","MPPMVENC",1,null,"CP6181B0R","MPPMVENC"]
["Keuz1: Spoel","-","SD9M1612D26WDN",2,null,"SD9M1612D26WDN","SD9M1624D26WDN","CP950220"]

{"sheet":"Calculatie","index":7,"n_rows":31,"n_cols":10,"rows_kept":31,"cut":false,"hidden":true,"merged":[]}
[]
["Tijd-staffel-tabel"]
[]
["E-motor / Secties",0,1,2,3,4,5,6,7,8]
[1,0,10,{"$f":"C5+3","v":13},16,19,22,25,28,31]
[2,0,10,13,16,19,22,25,28,31]
[3,0,10,13,16,19,22,25,28,31]
[4,0,10,13,16,19,22,25,28,31]
[5,30,40,43,46,49,52,55,58,61]
[7,30,40,43,46,49,52,55,58,61]
["Verticaal = Type Elektromotor, Horizontaal = Aantal opbouwsecties"]
[]
["Bepaling montage-tijd"]
[]
["Activiteit","Tijd"]
["Vaste tijd",180]
["Montage PP",{"$f":"VLOOKUP(VALUE(LEFT(SEL_MOTOR,1)),Calculatie!A5:J10,SEL_MOUNT_COUNT+2,FALSE)","v":0}]
["Testen",{"$f":"IF(SEL_BLN_TEST,15,0)","v":15}]
["Spuiten",{"$f":"IF(SEL_MOUNT_COUNT=0,0,(IF(SEL_BLN_PAINT,15,0)))","v":0}]
["Totaal",{"$f":"SUM(B16:B19)","v":195},{"$f":"TEXT((B20-MOD(B20,60))/60,\"#0\")&\":\"&TEXT(MOD(B20,60),\"00\")","v":"3:15"},{"$f":"B20/60","v":3.25}]
[]
["Technisch"]
[]
["Tankinhoud",{"$f":"VLOOKUP(SEL_TANK,DBS_TANK,2,FALSE)","v":30}]
["Pompinhoud (cc)",{"$f":"VLOOKUP(SEL_PUMP,DBS_PUMP,2,FALSE)","v":1}]
["Motor vermogen (kW)",{"$f":"VLOOKUP(SEL_MOTOR,DBS_MOTOR,2,FALSE)","v":2.2000000000000002}]
["Motor omw./min",{"$f":"VLOOKUP(SEL_MOTOR,DBS_MOTOR,3,FALSE)","v":1395}]
[]
["Max. werkdruk",{"$f":"MIN(250,TRUNC((B26*540)/((B27/1000)*B25)))","v":250}]
["Pompvolume (cc)",{"$f":"ROUND(B25*(B27/1000),1)","v":1.4}]
["Spoelfactor",{"$f":"ROUND(B24/(B25*1.45),1)","v":20.7}]

{"sheet":"Translations","index":8,"n_rows":94,"n_cols":6,"rows_kept":94,"cut":false,"hidden":true,"merged":[]}
["ID","Dutch","English","Deutsch","French"]
[1,"Taal:","Language:","Sprache:","Langue:"]
[2,"Bedrijfsnaam:","Company name:","Firma:","Nom de client:"]
[3,"Contactpersoon:","Att.:","Zu Händen:","à l'att.de:"]
[4,"Netto Marge","Nett Margin","Netto Marge","Marge net"]
[5,"Artikel:","Part:","Artikel:","Article:"]
[6,"Datum:","Date:","Datum:","Date:"]
[7,"Tank:","Oil tank:","Ölbehälter:","Réservoir:"]
[8,"Pomp:","Pump:","Pumpe:","Pompe:"]
[9,"Elektromotor:","Motor:","Motor:","Moteur électrique:"]
[11,"Tekeningnummer:","Drawing number:","Zeichnungsnummer:","Numéro de dessin:"]
[12,"Max. werkdruk:","Max. pressure:","Max. Druck:","Pression max.:"]
[13,"Flow:","Flow:","Förderstrom:","Débit:"]
[18,"Manometer:","Pressure Gauge:","Manometer:","Manomètre:"]
[19,"Voltage opbouw:","Voltage cetop:","Spannung Ventile:","Voltage cetop:"]
[20,"Aantal units:","Number of units:","Anzahl der Einheiten:","Quantité centrales:"]
[22,"Klantspecifiek","Customised","Kundenspezifisch","Spécifiquement pour client"]
[23,"Nettoprijs:","Net price:","Netto-Preis:","Prix net:"]
[24,"Levertijd:","Deliverytime:","Liefertermin:","Délai:"]
[25,"in overleg","to be agreed upon","nach Vereinbarung","à déterminer"]
[27,"De unit is excl. olie en bekabeling.","The Power-Pack is deliverd without oil and electrical cables.","Das Aggregat wird ohne Hydrauliköl und elektrische Verdrahtung geliefert.","La mini centrale est livrée sans réservoir et cables électrique"]
[28,"excl. BTW","excl. VAT","zzgl. MWST","TVA non compris"]
[29,"Deze offerte is geldig tot 30 dagen na dagtekening.","This quotation is valid for 30 days.","Die Geltungsdauer dieses Angebot ist 30 tage.","Validité de l'offre: 30 jours."]
[30,{"$f":"IF($F24=0,B20,\"gereed voor verzending in \"&TEXT($F24,\"0\")&\" dagen\")","v":{"$error":"#NAME?"}},{"$f":"IF($F24=0,C20,\"ready to ship in \"&TEXT($F24,\"0\")&\" days\")","v":{"$error":"#NAME?"}},{"$f":"IF($F24=0,D20,\"fertig für Versand in \"&TEXT($F24,\"0\")&\" Tage\")","v":{"$error":"#NAME?"}},{"$f":"IF($F24=0,E20,\"prêt pour expédition en \"&TEXT($F24,\"0\")&\" Jours\")","v":{"$error":"#NAME?"}},{"$f":"SEL_DELIVERY_DAYS","v":{"$error":"#NAME?"}}]
[32,"Levering volgens onze algemene leverings- en montagevoorwaarden","Delivery according to our general terms of delivery and assembly","Lieferung nach unseren allgemeinen Liefer- und Montage-Bedingungen","Livraison suivant notre condition de vente et d'assemblage"]
[33,"Handtekening","Signature","Unterschrift","Signature"]
[34,"Referentie:","Reference:","Referenz:","Référence:"]
[140,"Sectie1 - Onderb. 3:","Sect.1 - Mod.valve 3:","Sektion1 - Z-platte 3:","Sect.1 - Valve mod. 3:"]
[141,"Sectie1 - Onderb. 2:","Sect.1 - Mod.valve 2:","Sektion1 - Z-platte 2:","Sect.1 - Valve mod. 2:"]
[142,"Sectie1 - Onderb. 1:","Sect.1 - Mod.valve 1:","Sektion1 - Z-platte 1:","Sect.1 - Valve mod. 1:"]
[143,"Sectie1 - St.schuif:","Sect.1 - Sol.valve:","Sektion1 - Ventil:","Sect.1 - Distributeur:"]
[144,"Sectie2 - Onderb. 3:","Sect.2 - Mod.valve 3:","Sektion2 - Z-platte 3:","Sect.2 - Valve mod. 3:"]
[145,"Sectie2 - Onderb. 2:","Sect.2 - Mod.valve 2:","Sektion2 - Z-platte 2:","Sect.2 - Valve mod. 2:"]
[146,"Sectie2 - Onderb. 1:","Sect.2 - Mod.valve 1:","Sektion2 - Z-platte 1:","Sect.2 - Valve mod. 1:"]
[147,"Sectie2 - St.schuif:","Sect.2 - Sol.valve:","Sektion2 - Ventil:","Sect.2 - Distributeur:"]
[148,"Sectie3 - Onderb. 3:","Sect.3 - Mod.valve 3:","Sektion3 - Z-platte 3:","Sect.3 - Valve mod. 3:"]
[149,"Sectie3 - Onderb. 2:","Sect.3 - Mod.valve 2:","Sektion3 - Z-platte 2:","Sect.3 - Valve mod. 2:"]
[150,"Sectie3 - Onderb. 1:","Sect.3 - Mod.valve 1:","Sektion3 - Z-platte 1:","Sect.3 - Valve mod. 1:"]
[151,"Sectie3 - St.schuif:","Sect.3 - Sol.valve:","Sektion3 - Ventil:","Sect.3 - Distributeur:"]
[152,"Sectie4 - Onderb. 3:","Sect.4 - Mod.valve 3:","Sektion4 - Z-platte 3:","Sect.4 - Valve mod. 3:"]
[153,"Sectie4 - Onderb. 2:","Sect.4 - Mod.valve 2:","Sektion4 - Z-platte 2:","Sect.4 - Valve mod. 2:"]
[154,"Sectie4 - Onderb. 1:","Sect.4 - Mod.valve 1:","Sektion4 - Z-platte 1:","Sect.4 - Valve mod. 1:"]
[155,"Sectie4 - St.schuif:","Sect.4 - Sol.valve:","Sektion4 - Ventil:","Sect.4 - Distributeur:"]
[157,"Stuklijst","Bill of material","Artikel Liste","Pièces détachées:"]
[158,"Aantal","Amount","Anzahl","Quantité:"]
[159,"Kostprijs","Cost price","Kostpreis","Prix de revient:"]
[161,"Kostprijs materiaal:","Cost price materials:","Kosten Material:","Materiél divers:"]
[162,"minuten","minutes","minuten","Minutes"]
[163,"Toeslag:","Extra charge","Zuschlag:","Supplément:"]
[164,"Verkoop materiaal:","Sales price materials:","Verkaufspreis Material:","Prix de vente matériel"]
[165,"Kostprijs uren","Costprice hours","Kostpreis stunden","Frais heures de travail"]
[183,"Offerte","Quotation","Angebot","Offre"]
[184,"Materiaallijst","Bill of materials","Stückliste","Nomenclature"]
[186,"Omschrijving","Description","Umschreibung","Déscription"]
[187,"Annuleren","Cancel","Annulieren","Annuler"]
[188,"Publiceren","Publish","Publizieren","Publish"]
[190,"Sectie5 - Onderb. 3:","Sect.5 - Mod.valve 3:","Sektion5 - Z-platte 3:","Sect.5 - Valve mod. 3:"]
[191,"Sectie5 - Onderb. 2:","Sect.5 - Mod.valve 2:","Sektion5 - Z-platte 2:","Sect.5 - Valve mod. 2:"]
[192,"Sectie5 - Onderb. 1:","Sect.5 - Mod.valve 1:","Sektion5 - Z-platte 1:","Sect.5 - Valve mod. 1:"]
[193,"Sectie5 - St.schuif:","Sect.5 - Sol.valve:","Sektion5 - Ventil:","Sect.5 - Distributeur:"]
[194,"Sectie6 - Onderb. 3:","Sect.6 - Mod.valve 3:","Sektion6 - Z-platte 3:","Sect.6 - Valve mod. 3:"]
[195,"Sectie6 - Onderb. 2:","Sect.6 - Mod.valve 2:","Sektion6 - Z-platte 2:","Sect.6 - Valve mod. 2:"]
[196,"Sectie6 - Onderb. 1:","Sect.6 - Mod.valve 1:","Sektion6 - Z-platte 1:","Sect.6 - Valve mod. 1:"]
[197,"Sectie6 - St.schuif:","Sect.6 - Sol.valve:","Sektion6 - Ventil:","Sect.6 - Distributeur:"]
[198,"Sectie7 - Onderb. 3:","Sect.7 - Mod.valve 3:","Sektion7 - Z-platte 3:","Sect.7 - Valve mod. 3:"]
[199,"Sectie7 - Onderb. 2:","Sect.7 - Mod.valve 2:","Sektion7 - Z-platte 2:","Sect.7 - Valve mod. 2:"]
[200,"Sectie7 - Onderb. 1:","Sect.7 - Mod.valve 1:","Sektion7 - Z-platte 1:","Sect.7 - Valve mod. 1:"]
[201,"Sectie7 - St.schuif:","Sect.7 - Sol.valve:","Sektion7 - Ventil:","Sect.7 - Distributeur:"]
[202,"Sectie8 - Onderb. 3:","Sect.8 - Mod.valve 3:","Sektion8 - Z-platte 3:","Sect.8 - Valve mod. 3:"]
[203,"Sectie8 - Onderb. 2:","Sect.8 - Mod.valve 2:","Sektion8 - Z-platte 2:","Sect.8 - Valve mod. 2:"]
[204,"Sectie8 - Onderb. 1:","Sect.8 - Mod.valve 1:","Sektion8 - Z-platte 1:","Sect.8 - Valve mod. 1:"]
[205,"Sectie8 - St.schuif:","Sect.8 - Sol.valve:","Sektion8 - Ventil:","Sect.8 - Distributeur:"]
[206,"Tekening","Drawing","Zeichnung","Dessin"]
[207,"Testen","Test","Testen","Tester"]
[208,"Ventielen mee-spuiten","Paint valves","Ventile mit-spritzen","Peindre les distributeurs"]
[209,"Olie temperatuur/peilglas","Oil Temperature/Inspection glass","Öl Temperatur/Inspektionsfenster","Indicateur de niveau avec thermomètre"]
[210,"Veiligheid:","Relief valve:","Druckbegrenzung:","Valve de sécurité :"]
[211,"Rondpomp:","Neutral:","Freilauf:","Neutre:"]
[212,"Voetplaat:","Baseplate:","Basisplatte:","Embase :"]
[213,{"$f":"\"Waarschuwing: de spoel-factor bij deze unit is \"&SYS_CLC_SPOELFACTOR&\" (aanbevolen >= 2,5).\"","v":{"$error":"#NAME?"}},{"$f":"\"Warning: the flush-factor for this Power-Pack is \"&SYS_CLC_SPOELFACTOR&\" (recommended >= 2.5)\"","v":{"$error":"#NAME?"}},{"$f":"\"Achtung: Der Spül-faktor für dieses Aggregat ist \"&SYS_CLC_SPOELFACTOR&\" (empfohlen >= 2.5)\"","v":{"$error":"#NAME?"}},{"$f":"\"Attention: facteur de rinçage de cette centrale est \"&SYS_CLC_SPOELFACTOR&\" de rinçage (conseillé >= 2,5).\"","v":{"$error":"#NAME?"}}]
[214,{"$f":"\"De unit is compleet gemonteerd\"&IF(SEL_BLN_TEST,\" en getest\",\"\" )&IF(SEL_BLN_PAINT,\" (ventielen mee-gespoten)\",\"\") & \".\"","v":"De unit is compleet gemonteerd en getest (ventielen mee-gespoten)."},{"$f":"\"The Power-Pack is completely assembled\"&IF(SEL_BLN_TEST,\" and tested\",\"\")&IF(SEL_BLN_PAINT,\" (valves are painted)\",\"\") & \".\"","v":"The Power-Pack is completely assembled and tested (valves are painted)."},{"$f":"\"Das Aggregat ist komplet montiert\"&IF(SEL_BLN_TEST,\" und getestet\",\"\" )&IF(SEL_BLN_PAINT,\" (Ventile mit-gespritzt)\",\"\") & \".\"","v":"Das Aggregat ist komplet montiert und getestet (Ventile mit-gespritzt)."},{"$f":"\"Cette centrale est monté\"&IF(SEL_BLN_TEST,\" et testé.\",\"\" )&IF(SEL_BLN_PAINT,\" (distributeur sons peint )\",\"\") & \".\"","v":"Cette centrale est monté et testé. (distributeur sons peint )."}]
[215,"Ongeldige Tank/Pomp/Motor combinatie!","Invalid Tank/Pump/Motor combination!","Ungültige Ölbehälter/Pumpe/Motor kombination!","Combinaison réservoir/pompe/moteur nn valable!"]
[216,"Bewerkingstijd","Worktime","Arbeidszeit","Heures de travail"]
[217,"Inkoopprijs:","Purchaseprice:","Einkaufspreis:","Prix de revient:"]
[218,"Marge:","Margin:","Verdienstspanne:","Marge bénéficiaire"]
[219,"Verkoopprijs (afgerond):","Salesprice (rounded):","Verkaufspreis (abgerundet):","Prix de vente (arrondi)"]
[220,"Calculatie","Calculation","Kalkulation","Calculation"]
[221,"Materiaal","Materials","Material","Materiel"]
[222,"Verkoper","Salesman","Verkäufer","Vendeur"]
[223,"Olie temperatuur/peilglas met temperatuur-schakelaar","Oil Temperature/Inspection glass with thermal-switch","Öl Temperatur/Inspektionsfenster mit Thermische Schalter","Indicateur de niveau avec thermomètre & thermique commutateur"]
[224,"Opmerkingen","Remarks","Bemerkungen","Remarques"]
[225,"Opmerkingen (intern gebruik)","Remarks (internal usage)","Bemerkungen (internen Gebrauch)","Remarques (usage interne)"]
[226,"in overleg","to be agreed upon","nach Vereinbarung","à convenir"]
[227,"Uniparts/Inkoopprijs:","Uniparts/Purchaseprice:","Uniparts/Einkaufspreis:","Uniparts/Prix d'achat:"]